Workbook

Sheet Introduction
B1: ICFPA/NCASI Spreadsheets for Calculating GHG emissions from Wood Products Manufacturing Workbook Version 3.3b, appropriate for use in the Canadian Mandatory Reporting Program (Large Final Emitters program) or for potential regulatory offset project estimation. IPCC Method for methane emissions (see below for USER AGREEMENT)
C2: An aid to developing estimates using the methods in "Calculation Tools for Estimating Greenhouse Gas Emissions from Wood Products Manufacturing Facilities", Report Version 1.0
C4: This tool intends to facilitate the calculation of direct CO2, CH4, and N2O emissions from wood products manufacturing and ancillary operations. It also addresses emissions attributable to the purchase and export of electricity and/or steam. This document is to be used in conjunction with two additional documents: 1) 'Calculation Tools for Estimating Greenhouse Gas Emissions from Wood Products Manufacturing Facilities, Report Version 1.0' and 2) ‘The Greenhouse Gas Protocol, A Corporate Accounting and Reporting Standard, Revised Edition’, available at www.ghgprotocol.org
C11: These spreadsheets include significant amounts of material copied from other WRI and WBCSD calculation tools. Intellectual property rights of the WRI and WBCSD calculation tools belong to WRI and WBCSD, unless stated otherwise.
C13: The reporting information required by the Canadian mandatory GHG reporting program can be satisfied by completing the following worksheets:
D15: Operations in Inventory
D16: Stationary Combustion
D17: Other - Mobile & Transportation
D18: Other - Waste Management (IPCC Method for methane emissions)
D19: Biomass Combustion CO2
D20: Indirect - Energy Imports
D21: Indirect - Energy Exports
D22: Summary Table
C24: Global Warming potentials used in this tool are: | F24: 25 | G24: kg CO2 eq./kg CH4
F25: 298 | G25: kg CO2 eq./kg CH4
C27: These spreadsheets were developed by NCASI for the Climate Change Working Group of the International Council of Forest and Paper Associations (ICFPA). Questions or comments on this material can be directed to: Barry Malmberg NCASI PO Box 271 Sheridan, WY 82801 phone: + 541-752-8806 e-mail: BMalmberg@ncasi.org
C29: User Agreement: By using the Spreadsheets and associated materials in any manner, the User agrees to the following terms of this agreement:
C31: 1 | D31: Copyright: Portions of the spreadsheets and associated materials were developed by WRI, WBCSD or NCASI, are copyrighted, and are published here with the permission of those developers. The User acknowledges these copyrights.
C32: 2 | D32: Acknowledgement: The User agrees to acknowledge WRI, WBCSD, ICFPA, and NCASI for their roles in developing the Spreadsheets whenever the User authors reports or publications based in whole or in part on the use of the Spreadsheets.
C33: 3 | D33: Disclaimer: These Spreadsheets and associated materials have been prepared with a high degree of expertise and professionalism, and it is believed that the Spreadsheets provide a useful and accurate approach for calculating greenhouse gas emissions. However, the organizations involved in their development, including WRI, WBCSD, ICFPA and NCASI, collectively and individually, do not warrant these Spreadsheets for any purpose, nor do they make any representations regarding their fitness for any use or purpose whatsoever. Each User agrees to decide if, when and how to use the Spreadsheets, and does so at his or her sole risk. Under no circumstances shall WRI, WBCSD, ICFPA or NCASI be liable for any damages, including incidental, special or consequential damages, arising from the use of these Spreadsheets or an inability to use them.

Sheet Table of Contents
C2: Name of worksheet | D2: Content / purpose
C4: Introduction
C5: Table of Contents
C6: Operations in Inventory | D6: Describing the inventory boundaries and listing the operations included in the inventory
C7: Stationary Combustion | D7: Direct emissions of CO2, CH4, and N2O resulting from fuel combustion - includes default emission factors
C8: Mobile & Transportation | D8: Emissions of CO2, CH4, and N2O from fuel combustion in mobile equipment and transportation devices
C9: Waste Management | D9: Emissions of CH4 resulting from mill-owned landfills or anaerobic treatment operations
C10: Biomass Combustion CO2 | D10: Direct emissions of biomass CO2 for informational purposes only (not included with fossil fuel CO2 emissions)
C11: Indirect - Energy Imports | D11: GHG emissions resulting from electricity and /or steam imports
C12: Indirect - Energy Exports | D12: GHG emission impacts associated with electricity and /or steam exports
C13: CHP Allocation | D13: Allocation emissions from combined heat and power systems
C14: Summary Table | D14: Summarizes results of inventory
C15: Custom Emission Factors | D15: Calculating custom emission factors
C16: Energy Content | D16: Fuel specific higher heating values
C17: Conversion Factors | D17: Factors for converting among common units of measure
C18: Energy Factors | D18: Contains conversion factors and emission factors for use by formulas imbedded in the data entry forms
C19: Raw Data Log | D19: Provides a place for the automatic entry of raw data entered into the data entry forms, prior to unit conversion

Sheet Operations in Inventory
B2: This worksheet is for showing which operations are included in the inventory
F3: User enters information in spaces with this colour
B5: Operations in the Inventory
F7: Identifying name assigned to this inventory:
F9: Use this space to provide a general description of operational boundaries.
F12: Use this space to provide additional information helpful to understanding the operational boundaries of the inventory.
F15: Use this space to provide additional information helpful to understanding how emissions from partial ownership situations are allocated.
F18: The following information is not directly used in the GHG emissions calculations, but is intended to provide clarification of the type of facility for which the inventory is being performed.
F19: Operations that might be included in the inventory are listed below | G19: Place an "X" below where appropriate to indentify operations included in the inventory
F20: Harvesting
F21: Wood/chip/bark/other raw material transportation vehicles
F22: Product, by-product or waste transportation vehicles
F23: Debarking
F24: Chipping
F25: Mechanical pulping/refining
F26: Thermal oil heaters
F27: Natural gas direct-fired dryers
F28: Other fossil fuel-fired dryers
F29: On-site power and steam boilers
F30: On-site combustion turbines
F31: Air emissions control devices (e.g., RTOs, RCOs, ESPs, etc.)
F32: Wastewater treatment operations
F33: Sludge processing
F34: Landfill receiving mill waste
F35: On-site vehicles and machinery
F36: Normal offices/workspace for mill employees
F37: Imports of electrical power
F38: Imports of steam or hot water
F39: Exports of electrical power
F40: Exports of steam or hot water

Sheet Direct - Fuel Combust.
C3: Direct Emissions - Stationary Fuel Combustion (including methane and nitrous oxide emissions from biomass fuels)
C4: Note: Emissions from mobile sources are reported on the "Mobile & Transportation" spreadsheet immediately behind this spreadsheet
C6: These spreadsheets include significant amounts of material copied from other WRI and WBCSD calculation tools. Intellectual property rights of the WRI and WBCSD calculation tools belong to WRI and WBCSD, unless stated otherwise.
B8: EXPLANATION OF CELL COLOUR SCHEME
B9: User entry: Source / fuel description
B10: User entry: Fuel use / emission factor values | E10: Suggested default emission factors shown below
B11: Auto calculated value:
B14: Direct Emissions - Stationary Fuel Combustion
E15: Step 1 | G15: Step 2 | J15: Step 3
E16: A1 | F16: A2 | G16: B | H16: C | I16: D | J16: E | K16: F | L16: G | M16: H
E17: Quantity of fuel burned | F17: Units of Fuel Quantity | G17: CO2 emission factor Emission factors from VCR shown below | H17: CH4 emission factor Emission factors from VCR shown below | I17: N2O emission factor Emission factors from VCR shown below | J17: CO2 emissions in metric tonnes | K17: CH4 emissions in metric tonnes | L17: N2O emissions in metric tonnes | M17: Total emissions in terms of CO2 equivalents (metric tonnes)
G18: IMPORTANT! For the equations to function correctly, the numerator of the emission factors must be in terms of kg of GHG and the denominator must match the units of fuel quantity!! | J18: E = A * B / 1000 | K18: F = A * C / 1000 | L18: G = A * D / 1000 | M18: H = E + (F * GWPCH4) + (G * GWPN2O)
C19: Example: Source 1 | D19: Natural gas | E19: 1000000 | F19: m3 | G19: 1.891 | H19: 3.7e-05 | I19: 3.3e-05 | J19: =IF(E19="","",E19*G19/1000) -> 1891 | K19: =IF(H19="","",E19*H19/1000) -> 0.037 | L19: =IF(I19="","",E19*I19/1000) -> 0.033 | M19: =IF(E19="","",IF(J19="",0,J19)+IF(K19="",0,K19*GWPCH4)+IF(L19="",0,L19*GWPN2O)) -> 1901.759
C20: Source description | D20: Fuel type | E20: Fuel Quant | F20: Fuel Units | G20: CO2 Em. Factor | H20: CH4 Em. Factor | I20: N2O Em. Factor | J20: CO2 emissions (tonne) | K20: CH4 emissions (tonnes) | L20: N2O emissions (tonnes) | M20: Total EM
J21: =IF(E21="","",E21*G21/1000) ->  | K21: =IF(H21="","",E21*H21/1000) ->  | L21: =IF(I21="","",E21*I21/1000) ->  | M21: =IF(E21="","",IF(J21="",0,J21)+IF(K21="",0,K21*GWPCH4)+IF(L21="",0,L21*GWPN2O)) -> 
C47: Note, if the Visual Basic forms are used to enter data, custom emission factors will be identified with italic text in the table above (default emission factors will be in normal font). | J47: CO2 (metric tonnes) | K47: CH4 (metric tonnes) | L47: N2O (metric tonnes) | M47: CO2 Equivalents (metric tonnes)
E48: Step 4: Sum total of GHG emissions (including CO2 exports): | J48: =SUM(J21:J45) -> 0 | K48: =SUM(K21:K45) -> 0 | L48: =SUM(L21:L45) -> 0 | M48: =J48+K48*GWPCH4+L48*GWPN2O -> 0
D51: Emission Factors for Common Combustion Energy Sources for Commercial and Industrial Boilers
C53: Sources (unless otherwise noted): | D53: CO2, CH4, and N2O emission factors are from National Inventory Report: Greenhoue Gas Sources and Sinks in Canada, 1990 - 2006 (http://www.ec.gc.ca/pdb/ghg/inventory_report/2006_report/a12_eng.cfm),published by Environment Canada, unless otherwise noted.
C54: Fuel type | D54: CO2 Emission Factor | E54: CH4 Emission Factor | F54: N2O Emission Factor | G54: Comments
C55: Liquid Fossil
C56: Light ('Distillate') Oil (Oil #2), stationary sources | D56: 2.725 kg/l | E56: 0.000006 kg/l | F56: 0.000031 kg/l | G56: Data collected by NCASI indicates that lime kilns and calciners may exhibit higher CH4 emissions than light oil-fired boilers. IPCC discussion of N2O formation conditions indicates that lime kilns may exhibit zero N2O emissions.
C57: Heavy ('Residual') Oil (#6 Oil), stationary sources | D57: 3.124 kg/l | E57: 0.00012 kg/l | F57: 0.000064 kg/l | G57: Data collected by NCASI indicates that lime kilns and calciners may exhibit lower CH4 emissions than heavy oil-fired boilers. IPCC discussion of N2O formation conditions indicates that lime kilns may exhibit zero N2O emissions. | L57: D
C58: Kerosene | D58: 2.534 kg/l | E58: 0.000006 kg/l | F58: 0.000031 kg/l
C59: Diesel | D59: 2.663 kg/l | E59: 0.00013 kg/l | F59: 0.0004 kg/l
C60: Propane | D60: 1.510 kg/l | E60: 0.000024 kg/l | F60: 0.000108 kg/l
C61: Butane | D61: 1.730 kg/l | E61: 0.000024 kg/l | F61: 0.000108 kg/l
C62: Ethane | D62: 0.976 kg/l | G62: Environment Canada does not provide CH4 nor N2O emission factors for Ethane.
C63: Gaseous fossil
C64: Natural Gas, stationary sources (m3) | D64: 1.891 kg/m3 | E64: 0.000037 kg/m3 | F64: 0.000033 kg/m3 | G64: Data collected by NCASI indicates that lime kilns and calciners may exhibit higher CH4 emissions than natural gas-fired boilers. IPCC discussion of N2O formation conditions indicates that lime kilns may exhibit zero N2O emissions.
C65: Still Gas | D65: 1.750 kg/m3 | F65: 0.000002 kg/m3 | G65: Environment Canada does not provide a CH4 emission factor for still gas.
C66: Solid Fossil
C67: Newfoundland - Canadian Bituminous | D67: 2.25 kg/kg | E67: 0.00003 kg/kg | F67: 0.00002 kg/kg
C68: Newfoundland - Antracite | D68: 2.39 kg/kg | E68: 0.00003 kg/kg | F68: 0.00002 kg/kg
C69: Labrador - Canadian Bituminous | D69: 2.25 kg/kg | E69: 0.00003 kg/kg | F69: 0.00002 kg/kg
C70: Labrador - Antracite | D70: 2.39 kg/kg | E70: 0.00003 kg/kg | F70: 0.00002 kg/kg
C71: Nova Scotia - Canadian Bituminous | D71: 2.25 kg/kg | E71: 0.00003 kg/kg | F71: 0.00002 kg/kg
C72: Nova Scotia - U.S. Bituminous | D72: 2.29 kg/kg | E72: 0.00003 kg/kg | F72: 0.00002 kg/kg
C73: Nova Scotia - Sub-Bituminous | D73: 1.73 kg/kg | E73: 0.00003 kg/kg | F73: 0.00002 kg/kg
C74: New Brunswick - Canadian Bituminous | D74: 2.00 kg/kg | E74: 0.00003 kg/kg | F74: 0.00002 kg/kg
C75: New Brunswick - U.S. Bituminous | D75: 2.31 kg/kg | E75: 0.00003 kg/kg | F75: 0.00002 kg/kg
C76: Quebec - Canadian Bituminous | D76: 2.25 kg/kg | E76: 0.00003 kg/kg | F76: 0.00002 kg/kg
C77: Quebec - U.S. Bituminous | D77: 2.34 kg/kg | E77: 0.00003 kg/kg | F77: 0.00002 kg/kg
C78: Quebec - Anthracite | D78: 2.39 kg/kg | E78: 0.00003 kg/kg | F78: 0.00002 kg/kg
C79: Ontario - Canadian Bituminous | D79: 2.25 kg/kg | E79: 0.00003 kg/kg | F79: 0.00002 kg/kg
C80: Ontario - U.S. Bituminous | D80: 2.43 kg/kg | E80: 0.00003 kg/kg | F80: 0.00002 kg/kg
C81: Ontario - Sub-bituminous | D81: 1.73 kg/kg | E81: 0.00003 kg/kg | F81: 0.00002 kg/kg
C82: Ontario - Lignite | D82: 1.48 kg/kg | E82: 0.00003 kg/kg | F82: 0.00002 kg/kg
C83: Ontario - Anthracite | D83: 2.39 kg/kg | E83: 0.00003 kg/kg | F83: 0.00002 kg/kg
C84: Manitoba - Canadian Bituminous | D84: 2.25 kg/kg | E84: 0.00003 kg/kg | F84: 0.00002 kg/kg
C85: Manitoba - U.S. Bituminous | D85: 2.43 kg/kg | E85: 0.00003 kg/kg | F85: 0.00002 kg/kg
C86: Manitoba - Sub-bituminous | D86: 1.73 kg/kg | E86: 0.00003 kg/kg | F86: 0.00002 kg/kg
C87: Manitoba - Lignite | D87: 1.42 kg/kg | E87: 0.00003 kg/kg | F87: 0.00002 kg/kg
C88: Manitoba - Anthracite | D88: 2.39 kg/kg | E88: 0.00003 kg/kg | F88: 0.00002 kg/kg
C89: Saskatchewan - Canadian Bituminous | D89: 1.85 kg/kg | E89: 0.00003 kg/kg | F89: 0.00002 kg/kg
C90: Saskatchewan - Lignite | D90: 1.43 kg/kg | E90: 0.00003 kg/kg | F90: 0.00002 kg/kg
C91: Alberta - Canadian Bituminous | D91: 1.85 kg/kg | E91: 0.00003 kg/kg | F91: 0.00002 kg/kg
C92: Alberta - Sub-bituminous | D92: 1.77 kg/kg | E92: 0.00003 kg/kg | F92: 0.00002 kg/kg
C93: Alberta - Anthracite | D93: 2.39 kg/kg | E93: 0.00003 kg/kg | F93: 0.00002 kg/kg
C94: British Columbia - Canadian Bituminous | D94: 2.07 kg/kg | E94: 0.00003 kg/kg | F94: 0.00002 kg/kg
C95: British Columbia - U.S. Bituminous | D95: 2.43 kg/kg | E95: 0.00003 kg/kg | F95: 0.00002 kg/kg
C96: British Columbia - Sub-Bituminous | D96: 1.77 kg/kg | E96: 0.00003 kg/kg | F96: 0.00002 kg/kg
C97: All Provinces - Coke | D97: 2.48 kg/kg | E97: 0.00003 kg/kg | F97: 0.00002 kg/kg
C98: Biofuels*
C99: Wood Fuel/Wood Waste | D99: 0 | E99: 0.00016 kg/kg | F99: 0.0001 kg/kg | G99: Biomass combustion CO2 can be calculated in the "Biomass Combustion CO2" worksheet. CH4 and N2O emission factors are from USEPA AP-42, converted to units consistent with the other EC emission factors.
C100: * Biomass fuels, such as wood and spent pulping liquors, contain ‘biogenic’ carbon. Under international greenhouse gas accounting methods developed by the IPCC, biogenic carbon is considered to be part of the natural carbon balance and does not add to atmospheric concentrations of carbon dioxide. Reporters may wish to use a CO2 emission factor of zero for wood, wood waste, and other biomass fuels in which the carbon is entirely biogenic. *Quantities of biomass combustion carbon dioxide emissions may be calculated in the "Biomass Combustion CO2" sheet of this file. Estimates of biomass combustion CO2 emissions are not included in the Stationary Fuel Combustion emission results.
C101: *The factors for biomass fuels provided by Environment Canada are not consistent with the factors published in the cited source of the Environment Canada factors. Environment Canada indicates that "these factors may be reviewed by Environment Canada and are for wood with high moisture content." Because of the potential inaccuracies in the Environment Canada factors, the factors provided herein were drawn directly from the cited source of the Environment Canada factors when possible (United States Environmental Protection Agency (USEPA). 2001. AP-42 emission factors for wood residue combustion in boilers – Supplement G, July 2001. Washington, DC: United States Environmental Protection Agency.) Unfortunately, AP-42 does not provide emission factors for spent pulping liquors. Therefore, emission factors for pulping liquors were drawn from NCASI 2005.
C103: Other sources: | D103: National Council for Air and Stream Improvement, Inc. (NCASI). 1981. A study of the kraft process lime kiln total gaseous non-methane organic emissions. Technical Bulletin No. 358. Research Triangle Park, NC: National Council for Air and Stream Improvement, Inc.
D104: National Council for Air and Stream Improvement, Inc. (NCASI). 2005. Calculation Tools for Estimating Greenhouse Gas Emissions from Pulp and Paper Mills, Version 1.1. Research Triangle Park, NC: National Council for Air and Stream Improvement, Inc.

Sheet Mobile & Transportation
C1: Mobile and Transportation Sources which are Integral to the Production Process
C2: Note: Emissions from stationary sources are reported on the "Stationary Combustion" worksheet
C4: These spreadsheets include significant amounts of material copied from other WRI and WBCSD calculation tools. Intellectual property rights of the WRI and WBCSD calculation tools belong to WRI and WBCSD, unless stated otherwise.
C5: This worksheet can be used to calculate emissions from mobile combustion sources, including transportation. For transportation emissions, if total fuel consumption is not known, but distance traveled and vehicle efficiency are known, the "Optional Calculator" (to the right of the table) can be used to estimate fuel consumption based on distance and efficiency information. Do not include any combustion sources on this page that were already addressed in the "Stationary Combustion" sheet.
C7: EXPLANATION OF CELL COLOUR SCHEME
D8: User entry: Source / fuel description
D9: User entry: Fuel use / emission factor values
D10: Auto calculated value:
B13: Emissions from Transportation and Mobile Equipment
F15: Quantity of Fuel burned | G15: Units of Fuel Quantity | H15: CO2 Emission Factor Emission factors from VCR shown below | I15: CH4 Emission Factor Emission factors from VCR shown below | J15: N2O Emission Factor Emission factors from VCR shown below | K15: CO2 emissions in metric tonnes | L15: CH4 emissions in metric tonnes | M15: N2O emissions in metric tonnes
H16: IMPORTANT! For equations to function correctly, numerator of emission factors must be in terms of kg of GHG and denominator must match units of fuel quantity!! | O16: =IF(AND(O20>0,O22>0),"Enter mpg OR l/100km, not both!","") -> 
D17: Example: Heavy duty truck fleet | E17: Diesel | F17: 100000 | G17: liter | H17: 2.73 | I17: 0.00012 | J17: 8e-05 | K17: =IF(F17="","",F17*H17/1000) -> 273 | L17: =IF(F17="","",F17*I17/1000) -> 0.012 | M17: =IF(F17="","",F17*J17/1000) -> 0.008
D18: Source Description | E18: Fuel Type | F18: Fuel Quantity | G18: Quantity Units | H18: CO2 Em. Factor | I18: CH4 Em. Factor | J18: N2O Em. Factor | K18: CO2 Emissions (tonne CO2) | L18: CH4 Emissions (tonne CH4) | M18: N2O Emissions (tonne N2O) | O18: Optional Calculator
K19: =IF(F19="","",F19*H19/1000) ->  | L19: =IF(F19="","",F19*I19/1000) ->  | M19: =IF(F19="","",F19*J19/1000) ->  | O19: 1000 | P19: = Distance traveled | Q19: <<< enter this value
O20: 0 | P20: = miles per gallon
P21: OR | Q21: <<< enter one of these
O22: 2 | P22: = litres per 100 km
O23: =IF(AND(O20>0,O22>0),"Error",IF(O20>0,O19/O20,O19/100*O22)) -> 20 | P23: =IF(O20>0,"Gallons used","litres used") -> litres used | Q23: <<< calculated
D45: Note, if the Visual Basic forms are used to enter data, custom emission factors will be identified with italic text in the table above (default emission factors will be in normal font). | K45: tonnes CO2 | L45: tonnes CH4 | M45: tonnes N2O
H46: Total transportation emissons based on fuel use >>> | K46: =SUM(K19:K43) -> 0 | L46: =SUM(L19:L43) -> 0 | M46: =SUM(M19:M43) -> 0
D52: Emission Factors for Common Transportation Fuels (taken from Canadian GHG Challenge Registry Guide to Entity & Facility-Based Reporting, Version 4.0, February 2005, Table 5, p. 26.
D56: Fuel type | E56: CO2 Emission Factor | F56: CH4 Emission Factor | G56: N2O Emission Factor
D58: Car (Gasoline) | E58: 2.360 kg/l | F58: 0.00012 kg/l | G58: 0.00026 kg/l
D59: Car (E10 Ethanol blend gasoline) | E59: 2.124 kg/l | F59: 0.00012 kg/l | G59: 0.00026 kg/l
D60: Car (Diesel) | E60: 2.730 kg/l | F60: 0.00005 kg/l | G60: 0.0002 kg/l
D61: Light truck (Gasoline) | E61: 2.360 kg/l | F61: 0.00022 kg/l | G61: 0.00041 kg/l
D62: Light Truck (E10 Ethanol blend gasoline) | E62: 2.124 kg/l | F62: 0.00022 kg/l | G62: 0.00041 kg/l
D63: Light Truck (Diesel) | E63: 2.730 kg/l | F63: 0.00007 kg/l | G63: 0.0002 kg/l
D64: Heavy Duty Vehicle (Gasoline) | E64: 2.360 kg/l | F64: 0.00017 kg/l | G64: 0.001 kg/l
D65: Heavy Duty (E10 Ethanol blend gasoline) | E65: 2.124 kg/l | F65: 0.00017 kg/l | G65: 0.001 kg/l
D66: Heavy Duty Truck (Diesel) | E66: 2.730 kg/l | F66: 0.00012 kg/l | G66: 0.00008 kg/l
D67: Motorcycle (Gasoline) | E67: 2.360 kg/l | F67: 0.0014 kg/l | G67: 0.000046 kg/l
D68: Motorcycle (E10 Ethanol blend gasoline) | E68: 2.124 kg/l | F68: 0.0014 kg/l | G68: 0.000046 kg/l
D69: Propane Vehicles | E69: 1.500 kg/l | F69: 0.00052 kg/l | G69: 0.000028 kg/l
D70: Natural Gas Vehicles | E70: 2.758 kg/kg | F70: 0.03210 kg/kg | G70: 0.00009 kg/kg
D71: Off-Road Vehicles (Gasoline) | E71: 2.360 kg/l | F71: 0.0027 kg/l | G71: 0.00005 kg/l
D72: Off-Road (E10 Ethanol blend gasoline) | E72: 2.124 kg/l | F72: 0.0027 kg/l | G72: 0.00005 kg/l
D73: Off-Road Vehicles (Diesel) | E73: 2.730 kg/l | F73: 0.00014 kg/l | G73: 0.0011 kg/l
D74: Railroad Locomotives (Diesel) | E74: 2.730 kg/l | F74: 0.00015 kg/l | G74: 0.0011 kg/l
D75: Boats (Gasoline) | E75: 2.360 kg/l | F75: 0.0013 kg/l | G75: 0.00006 kg/l
D76: Ships (Diesel) | E76: 2.730 kg/l | F76: 0.00015 kg/l | G76: 0.00100 kg/l
D77: Ships (Light 'Distillate' Oil) | E77: 2.830 kg/l | F77: 0.0003 kg/l | G77: 0.00007 kg/l
D78: Ships (Heavy 'Residual' Oil) | E78: 3.090 kg/l | F78: 0.0003 kg/l | G78: 0.00008 kg/l
D79: Conventional Aircraft (Aviation Gasoline) | E79: 2.330 kg/l | F79: 0.00219 kg/l | G79: 0.00023 kg/l
D80: Jet Aircraft (Aviation Turbo Fuel) | E80: 2.550 kg/l | F80: 0.00008 kg/l | G80: 0.00025 kg/l

Sheet Waste Management
C1: Waste Management
C2: For landfills and anaerobic wastewater treatment and sludge digestion systems
C3: Note: Scroll down the page to find the spreadsheet for anaerobic treatment systems
B5: These spreadsheets include significant amounts of material copied from other WRI and WBCSD calculation tools. Intellectual property rights of the WRI and WBCSD calculation tools belong to WRI and WBCSD, unless stated otherwise.
B8: EXPLANATION OF CELL COLOUR SCHEME
B9: User entry: Source description
B10: User entry: Data and parameter values
B11: Auto calculated value:
C14: Methane emissions from landfills Note: Use only one of the following methods for each landfill.
C15: Method 1 - For landfills with low permeability caps and effective gas recovery systems where measurements are made of amounts of gas collected
E17: Step 1
E18: A | F18: B | G18: C | H18: D | I18: E | J18: F | K18: G
E19: Quantity of gas collected [dry standard cubic meters/yr] | F19: Efficiency of gas collection system [default = 0.75] | G19: Fraction of collected gas that is burned [default = 1.0] | H19: Methane content of gas [default = 0.5] | I19: Fraction of uncollected methane that oxidizes in the landfill cover [default = 0.1] | J19: Quantity of methane released [dry standard cubic meters/yr] | K19: Methane emissions in metric tonnes
J20: F=((A/B)*(1-B)*D*(1-E))+(A*D*(1-C)) | K20: G = F * [ 0.72 kg / standard cubic meter ] / 1000
C21: Example: Landfill A | D21: Mill sludge, ash and misc. | E21: 820000 | F21: 0.75 | G21: 0.9 | H21: 0.47 | I21: 0.1 | J21: =((E21/F21)*(1-F21)*H21*(1-I21))+(E21*H21*(1-G21)) -> 154160 | K21: =J21*0.72/1000 -> 110.9952
C22: Landfill description | D22: Waste type | E22: Gas Quantity | F22: Collect. Eff. | G22: Fract. burned | H22: CH4 content | I22: Fract. ox. in cover | J22: CH4 released | K22: Emissions (tonne CH4)
J23: =IF(E23=0,"",((E23/F23)*(1-F23)*H23*(1-I23))+(E23*H23*(1-G23))) ->  | K23: =IF(E23="","",J23*0.72/1000) -> 
J24: =IF(E24=0,"",((E24/F24)*(1-F24)*H24*(1-I24))+(E24*H24*(1-G24))) ->  | K24: =IF(E24="","",J24*0.72/1000) -> 
J25: =IF(E25=0,"",((E25/F25)*(1-F25)*H25*(1-I25))+(E25*H25*(1-G25))) ->  | K25: =IF(E25="","",J25*0.72/1000) -> 
J26: =IF(E26=0,"",((E26/F26)*(1-F26)*H26*(1-I26))+(E26*H26*(1-G26))) ->  | K26: =IF(E26="","",J26*0.72/1000) -> 
J27: =IF(E27=0,"",((E27/F27)*(1-F27)*H27*(1-I27))+(E27*H27*(1-G27))) ->  | K27: =IF(E27="","",J27*0.72/1000) -> 
G29: Step 2: Sum mill landfill methane emissions from Method 1: | K29: =SUM(K23:K27) -> 0 | L29: metric tonnes CH4
C30: Method 2 - For landfills that cannot use Method 1.
C31: Method 2 is applicable to landfills where the amounts of waste deposited are reasonably constant from year-to-year and the landfill design has not been changed in ways that would substantially alter landfill gas releases.
E33: Step 1 | K33: Step 2
E34: A | F34: B | G34: C | H34: D | I34: E | J34: F | K34: G | L34: H | M34: I | N34: J | O34: K
E35: Annual waste deposits [Wet metric tonnes / year] | F35: Ultimate Methane Potential, Lo, in cubic meters methane per dry metric tonne waste [default for mill waste = 100 m3/wet Mg] | G35: First order methane generation rate constant, k [default for mill waste = 0.03 per year | H35: Years since landfill opened | I35: Years since landfill stopped receiving waste | J35: Quantity of methane generated [dry standard cubic meters/yr] | K35: Fraction of uncollected methane that oxidizes in the landfill cover [default = 0.1] | L35: Fraction of landfill gas that is collected | M35: Fraction of collected landfill gas that is burned | N35: Methane emissions in cubic meters per year | O35: Methane emissions in metric tonnes
J36: F = A * B * (e^(-k*E) - e^(-k*D)) | N36: J = (F*(1-H)*(1-G))+(F*H*(1-I)) | O36: K = J * [ 0.72 kg / standard cubic meter ] / 1000
C37: Example: Landfill A | D37: Mill sludge, ash and misc. | E37: 17500 | F37: 100 | G37: 0.03 | H37: 20 | I37: 0 | J37: =E37*F37*(EXP(-G37*I37)-EXP(-G37*H37)) -> 789579.6368 | K37: 0.1 | L37: 0 | M37: 0 | N37: =(J37*(1-L37)*(1-K37))+(J37*L37*(1-M37)) -> 710621.6732 | O37: =N37*0.72/1000 -> 511.6476047
C38: Landfill description | D38: Waste type | E38: Deposit (tonne/yr) | F38: Lo | G38: 1st order rate const | H38: Yrs since opened | I38: Yrs since closed | J38: CH4 generated (dry std m3) | K38: Fract. ox. in cover | L38: Fract. collected | M38: Fraction burned | O38: Direct emissions (tonne CH4)
J39: =IF(E39="","",E39*F39*(EXP(-G39*I39)-EXP(-G39*H39))) ->  | N39: =IF(J39="","",(J39*(1-L39)*(1-K39))+(J39*L39*(1-M39))) ->  | O39: =IF(N39="","",N39*0.72/1000) -> 
J40: =IF(E40="","",E40*F40*(EXP(-G40*I40)-EXP(-G40*H40))) ->  | N40: =IF(J40="","",(J40*(1-L40)*(1-K40))+(J40*L40*(1-M40))) ->  | O40: =IF(N40="","",N40*0.72/1000) -> 
J41: =IF(E41="","",E41*F41*(EXP(-G41*I41)-EXP(-G41*H41))) ->  | N41: =IF(J41="","",(J41*(1-L41)*(1-K41))+(J41*L41*(1-M41))) ->  | O41: =IF(N41="","",N41*0.72/1000) -> 
J42: =IF(E42="","",E42*F42*(EXP(-G42*I42)-EXP(-G42*H42))) ->  | N42: =IF(J42="","",(J42*(1-L42)*(1-K42))+(J42*L42*(1-M42))) ->  | O42: =IF(N42="","",N42*0.72/1000) -> 
J43: =IF(E43="","",E43*F43*(EXP(-G43*I43)-EXP(-G43*H43))) ->  | N43: =IF(J43="","",(J43*(1-L43)*(1-K43))+(J43*L43*(1-M43))) ->  | O43: =IF(N43="","",N43*0.72/1000) -> 
J45: Step 3: Sum mill landfill methane emissions from Method 2: | O45: =SUM(O39:O43) -> 0 | P45: metric tonnes CH4
C47: Sum of emissions from landfills >> | J47: Sum of mill landfill methane emissions from Methods 1, 2 & 3: | O47: =IF(OR(G57="Invalid Year",ISERROR(G57)),+K29+O45,+K29+O45+G57) -> 0 | P47: metric tonnes CH4
C49: Method 3 - For landfills that cannot use Methods 1 or 2.
C50: Method 3 is applicable to landfills where the amounts of waste deposited vary substantially from year-to-year and the landfill design has changed in ways that would substantially alter landfill gas releases. This table for Method 3 can only estimate emissions from a single landfill. If emissions from multiple landfills are to be estimated, make a separate copy of this Excel worksheet for each additional landfill to be considered. In this case, the user will have to manually sum all landfill emission estimates and enter this value in the appropriate cell of the "Summary Table" worksheet.
C51: Landfill description | D51: Waste type
F54: First year that material was deposited in landfill (or that data is available):
F55: Last year that material was deposited in landfill (or that data is available):
F56: Year of interest for emission estimate:
D57: Estimated Emissions [metric tonnes CH4]: | G57: =IF(G56>=G54,IF(ISERROR(LOOKUP(G56,H59:BE59,H61:BE61)),0,LOOKUP(G56,H59:BE59,H61:BE61)),"Invalid Year") -> 0 | H57: metric tonnes CH4
G59: Year Emissions Estimated | H59: =+IF(G54="","",G54) ->  | I59: =+IF(ISERROR(AND(H59+1>$G55,H59+1>$G56)),"",IF((AND(H59+1>$G55,H59+1>$G56)),"",H59+1)) ->  | AO59: =+IF(ISERROR(AND(AN59+1>$G55,AN59+1>$G56)),"",IF((AND(AN59+1>$G55,AN59+1>$G56)),"",AN59+1)) -> 
G60: Methane emissions in metric tonnes CO2 equivalents | H60: =IF(ISERROR(H61*GWPCH4),"",H61*GWPCH4) -> 0 | I60: 0 | J60: 0 | K60: 0 | L60: 0 | M60: 0 | N60: 0 | O60: 0 | P60: 0 | Q60: 0 | R60: 0 | S60: 0 | T60: 0 | U60: 0 | V60: 0 | W60: 0 | X60: 0 | Y60: 0 | Z60: 0 | AA60: 0 | AB60: 0 | AC60: 0 | AD60: 0 | AE60: 0 | AF60: 0 | AG60: 0 | AH60: 0 | AI60: 0 | AJ60: 0 | AK60: 0 | AL60: 0 | AM60: 0 | AN60: =IF(ISERROR(AN61*GWPCH4),"",AN61*GWPCH4) -> 0 | AO60: 0 | AP60: 0 | AQ60: 0 | AR60: 0 | AS60: 0 | AT60: 0 | AU60: 0 | AV60: 0 | AW60: 0 | AX60: 0 | AY60: 0 | AZ60: 0 | BA60: 0 | BB60: 0 | BC60: 0 | BD60: 0 | BE60: 0
G61: Methane emissions in metric tonnes CH4 | H61: =IF(ISERROR(H62*0.0007167),"",H62*0.0007167) -> 0 | I61: =IF(ISERROR(I62*0.0007167),"",I62*0.0007167) -> 0 | J61: 0 | K61: 0 | L61: 0 | M61: 0 | N61: 0 | O61: 0 | P61: 0 | Q61: 0 | R61: 0 | S61: 0 | T61: 0 | U61: 0 | V61: 0 | W61: 0 | X61: 0 | Y61: 0 | Z61: 0 | AA61: 0 | AB61: 0 | AC61: 0 | AD61: 0 | AE61: 0 | AF61: 0 | AG61: 0 | AH61: 0 | AI61: 0 | AJ61: 0 | AK61: 0 | AL61: 0 | AM61: 0 | AN61: 0 | AO61: 0 | AP61: 0 | AQ61: 0 | AR61: 0 | AS61: 0 | AT61: 0 | AU61: 0 | AV61: 0 | AW61: 0 | AX61: 0 | AY61: 0 | AZ61: 0 | BA61: 0 | BB61: 0 | BC61: 0 | BD61: 0 | BE61: 0
G62: Methane emissions in cubic meters per year | H62: =IF(ISERROR(H63*((1-H65)*(1-H64)+(H65*(1-H66)))),"",H63*((1-H65)*(1-H64)+(H65*(1-H66)))) -> 0 | I62: =IF(ISERROR(I63*((1-I65)*(1-I64)+(I65*(1-I66)))),"",I63*((1-I65)*(1-I64)+(I65*(1-I66)))) -> 0 | J62: 0 | K62: 0 | L62: 0 | M62: 0 | N62: 0 | O62: 0 | P62: 0 | Q62: 0 | R62: 0 | S62: 0 | T62: 0 | U62: 0 | V62: 0 | W62: 0 | X62: 0 | Y62: 0 | Z62: 0 | AA62: 0 | AB62: 0 | AC62: 0 | AD62: 0 | AE62: 0 | AF62: 0 | AG62: 0 | AH62: 0 | AI62: 0 | AJ62: 0 | AK62: 0 | AL62: 0 | AM62: 0 | AN62: 0 | AO62: 0 | AP62: 0 | AQ62: 0 | AR62: 0 | AS62: 0 | AT62: 0 | AU62: 0 | AV62: 0 | AW62: 0 | AX62: 0 | AY62: 0 | AZ62: 0 | BA62: 0 | BB62: 0 | BC62: 0 | BD62: 0 | BE62: 0
G63: Quantity of methane generated [dry standard cubic meters/yr] | H63: =IF(ISERROR(SUM(H$67:H$116)),"",SUM(H$67:H$116)) -> 0 | I63: =IF(ISERROR(SUM(I$67:I$116)),"",SUM(I$67:I$116)) -> 0 | J63: 0 | K63: 0 | L63: 0 | M63: 0 | N63: 0 | O63: 0 | P63: 0 | Q63: 0 | R63: 0 | S63: 0 | T63: 0 | U63: 0 | V63: 0 | W63: 0 | X63: 0 | Y63: 0 | Z63: 0 | AA63: 0 | AB63: 0 | AC63: 0 | AD63: 0 | AE63: 0 | AF63: 0 | AG63: 0 | AH63: 0 | AI63: 0 | AJ63: 0 | AK63: 0 | AL63: 0 | AM63: 0 | AN63: 0 | AO63: 0 | AP63: 0 | AQ63: 0 | AR63: 0 | AS63: 0 | AT63: 0 | AU63: 0 | AV63: 0 | AW63: 0 | AX63: 0 | AY63: 0 | AZ63: 0 | BA63: 0 | BB63: 0 | BC63: 0 | BD63: 0 | BE63: 0
D64: Data for Method 3 - Landfills | G64: Fraction of uncollected methane that oxidizes in the landfill cover [default = 0.1]
G65: Fraction of landfill gas that is collected
C66: Year of Placement (auto-calculated from information entered above in cells G53 and G54) | D66: Quantity Placed [Wet metric tons] | E66: Ultimate Methane Potential, Lo, [default for mill waste Lo =100m3/wet Mg] | F66: First order methane generation rate constant, k [default for mill waste k = 0.03/yr] | G66: Fraction of collected landfill gas that is burned
C67: =+IF(H$59<=$G$55,H$59,"") ->  | I67: =IF(ISERROR($F67*$E67*EXP(-$F67*(I$59-$C67))*$D67),"",$F67*$E67*EXP(-$F67*(I$59-$C67))*$D67) ->  | J67: =IF(ISERROR($F67*$E67*EXP(-$F67*(J$59-$C67))*$D67),"",$F67*$E67*EXP(-$F67*(J$59-$C67))*$D67) -> 
C68: =+IF(I$59<=$G$55,I$59,"") ->  | AE68: =IF(ISERROR($F68*$E68*EXP(-$F68*(AE$59-$C68))*$D68),"",$F68*$E68*EXP(-$F68*(AE$59-$C68))*$D68) ->  | AQ68: =IF(ISERROR($F68*$E68*EXP(-$F68*(AQ$59-$C68))*$D68),"",$F68*$E68*EXP(-$F68*(AQ$59-$C68))*$D68) ->  | AY68: =IF(ISERROR($F68*$E68*EXP(-$F68*(AY$59-$C68))*$D68),"",$F68*$E68*EXP(-$F68*(AY$59-$C68))*$D68) -> 
C69: =+IF(J$59<=$G$55,J$59,"") -> 
C70: =+IF(K$59<=$G$55,K$59,"") -> 
C71: =+IF(L$59<=$G$55,L$59,"") ->  | BE71: =IF(ISERROR($F71*$E71*EXP(-$F71*(BE$59-$C71))*$D71),"",$F71*$E71*EXP(-$F71*(BE$59-$C71))*$D71) -> 
C72: =+IF(M$59<=$G$55,M$59,"") -> 
C73: =+IF(N$59<=$G$55,N$59,"") -> 
C74: =+IF(O$59<=$G$55,O$59,"") -> 
C75: =+IF(P$59<=$G$55,P$59,"") -> 
C76: =+IF(Q$59<=$G$55,Q$59,"") -> 
C77: =+IF(R$59<=$G$55,R$59,"") -> 
C78: =+IF(S$59<=$G$55,S$59,"") -> 
C79: =+IF(T$59<=$G$55,T$59,"") -> 
C80: =+IF(U$59<=$G$55,U$59,"") ->  | AD80: =IF(ISERROR($F80*$E80*EXP(-$F80*(AD$59-$C80))*$D80),"",$F80*$E80*EXP(-$F80*(AD$59-$C80))*$D80) -> 
C81: =+IF(V$59<=$G$55,V$59,"") ->  | AP81: =IF(ISERROR($F81*$E81*EXP(-$F81*(AP$59-$C81))*$D81),"",$F81*$E81*EXP(-$F81*(AP$59-$C81))*$D81) -> 
C82: =+IF(W$59<=$G$55,W$59,"") -> 
C83: =+IF(X$59<=$G$55,X$59,"") ->  | Y83: =IF(ISERROR($F83*$E83*EXP(-$F83*(Y$59-$C83))*$D83),"",$F83*$E83*EXP(-$F83*(Y$59-$C83))*$D83) -> 
C84: =+IF(Y$59<=$G$55,Y$59,"") -> 
C85: =+IF(Z$59<=$G$55,Z$59,"") ->  | AX85: =IF(ISERROR($F85*$E85*EXP(-$F85*(AX$59-$C85))*$D85),"",$F85*$E85*EXP(-$F85*(AX$59-$C85))*$D85) -> 
C86: =+IF(AA$59<=$G$55,AA$59,"") -> 
C87: =+IF(AB$59<=$G$55,AB$59,"") -> 
C88: =+IF(AC$59<=$G$55,AC$59,"") -> 
C89: =+IF(AD$59<=$G$55,AD$59,"") -> 
C90: =+IF(AE$59<=$G$55,AE$59,"") ->  | AF90: =IF(ISERROR($F90*$E90*EXP(-$F90*(AF$59-$C90))*$D90),"",$F90*$E90*EXP(-$F90*(AF$59-$C90))*$D90) -> 
C91: =+IF(AF$59<=$G$55,AF$59,"") -> 
C92: =+IF(AG$59<=$G$55,AG$59,"") -> 
C93: =+IF(AH$59<=$G$55,AH$59,"") -> 
C94: =+IF(AI$59<=$G$55,AI$59,"") -> 
C95: =+IF(AJ$59<=$G$55,AJ$59,"") -> 
C96: =+IF(AK$59<=$G$55,AK$59,"") -> 
C97: =+IF(AL$59<=$G$55,AL$59,"") -> 
C98: =+IF(AM$59<=$G$55,AM$59,"") -> 
C99: =+IF(AN$59<=$G$55,AN$59,"") -> 
C100: =+IF(AO$59<=$G$55,AO$59,"") -> 
C101: =+IF(AP$59<=$G$55,AP$59,"") -> 
C102: =+IF(AQ$59<=$G$55,AQ$59,"") ->  | AR102: =IF(ISERROR($F102*$E102*EXP(-$F102*(AR$59-$C102))*$D102),"",$F102*$E102*EXP(-$F102*(AR$59-$C102))*$D102) -> 
C103: =+IF(AR$59<=$G$55,AR$59,"") -> 
C104: =+IF(AS$59<=$G$55,AS$59,"") -> 
C105: =+IF(AT$59<=$G$55,AT$59,"") -> 
C106: =+IF(AU$59<=$G$55,AU$59,"") -> 
C107: =+IF(AV$59<=$G$55,AV$59,"") -> 
C108: =+IF(AW$59<=$G$55,AW$59,"") -> 
C109: =+IF(AX$59<=$G$55,AX$59,"") -> 
C110: =+IF(AY$59<=$G$55,AY$59,"") ->  | AZ110: =IF(ISERROR($F110*$E110*EXP(-$F110*(AZ$59-$C110))*$D110),"",$F110*$E110*EXP(-$F110*(AZ$59-$C110))*$D110) -> 
C111: =+IF(AZ$59<=$G$55,AZ$59,"") -> 
C112: =+IF(BA$59<=$G$55,BA$59,"") -> 
C113: =+IF(BB$59<=$G$55,BB$59,"") -> 
C114: =+IF(BC$59<=$G$55,BC$59,"") -> 
C115: =+IF(BD$59<=$G$55,BD$59,"") -> 
C116: =+IF(BE$59<=$G$55,BE$59,"") -> 
C125: Methane emissions from anaerobic wastewater treatment or sludge digestion systems Note: Use only one of the following methods for each source.
C126: Method 1 - For anaerobic wastewater treatment and sludge digestion systems where gas is collected
C127: NOTE: If the gas collection system is highly efficient and all gas is burned, the direct GHG emissions can be assumed to be zero.
E128: Step 1
E129: A | F129: B | G129: C | H129: D | I129: E | J129: F
E130: Quantity of gas collected [dry standard cubic meters/yr] | F130: Efficiency of gas collection system [default = 1.0] | G130: Fraction of collected gas that is burned [default = 1.0] | H130: Methane content of gas [default = 0.5] | I130: Quantity of methane released [dry standard cubic meters/yr] | J130: Methane emissions in metric tonnes CH4
I131: E=((A/B)*(1-B)*D)+(A*D*(1-C)) | J131: F = E * [ 0.72 kg / standard cubic meter ] / 1000
C132: Example: System A | D132: Anaerobic treatment system | E132: 1000 | F132: 0.9 | G132: 0.5 | H132: 0.5 | I132: =((E132/F132)*(1-F132)*H132)+(E132*H132*(1-G132)) -> 305.5555556 | J132: =I132*0.72/1000 -> 0.22
C133: System description | D133: Waste type | E133: Quant. gas collected (std. dry m3) | F133: Eff. of collection system | G133: Fraction burned | H133: CH4 content of gas | I133: Em. (m3 CH4/yr) | J133: Em. (tonne CH4)
I134: =IF(F134=0,"",((E134/F134)*(1-F134)*H134)+(E134*H134*(1-G134))) ->  | J134: =IF(I134="","",I134*0.72/1000) -> 
I135: =IF(F135=0,"",((E135/F135)*(1-F135)*H135)+(E135*H135*(1-G135))) ->  | J135: =IF(I135="","",I135*0.72/1000) -> 
I136: =IF(F136=0,"",((E136/F136)*(1-F136)*H136)+(E136*H136*(1-G136))) ->  | J136: =IF(I136="","",I136*0.72/1000) -> 
I137: =IF(F137=0,"",((E137/F137)*(1-F137)*H137)+(E137*H137*(1-G137))) ->  | J137: =IF(I137="","",I137*0.72/1000) -> 
I138: =IF(F138=0,"",((E138/F138)*(1-F138)*H138)+(E138*H138*(1-G138))) ->  | J138: =IF(I138="","",I138*0.72/1000) -> 
E140: Step 2: Sum anaerobic wastewater or sludge treatment methane emissions from Method 1: | J140: =SUM(J134:J138) -> 0 | K140: metric tonnes CH4
C141: Method 2 - For anaerobic wastewater treatment and sludge digestion systems where gas is NOT collected or the collection efficiency is not known.
E143: Step 1
E144: A | F144: B | G144: C | H144: D | I144: E
E145: Amount of organic matter sent to treatment per year [kg BOD or COD per year] | F145: Methane emission factor [default for mill wastes = 0.25 kg methane per kg COD in the feed or 0.60 kg methane per kg BOD in the feed. Units must match column A] | G145: Amount of methane captured and burned [kg methane / yr] | H145: Quantity of methane released [kg methane / yr] | I145: Methane emissions in metric tonnes
H146: D = (A * B) - C | I146: E = D / 1000
C147: Example: System B | D147: Anaerobic treatment system | E147: 3000000 | F147: 0.25 | G147: 600000 | H147: =E147*F147-G147 -> 150000 | I147: =H147/1000 -> 150
C148: System description | D148: Waste type | E148: Amount of organic matter (kg) | F148: CH4 em. factor | G148: CH4 burned (kg/yr) | H148: Em (kg CH4/yr) | I148: Em. (tonne CH4)
H149: =IF(E149="","",E149*F149-G149) ->  | I149: =IF(H149="","",H149/1000) -> 
H150: =IF(E150="","",E150*F150-G150) ->  | I150: =IF(H150="","",H150/1000) -> 
H151: =IF(E151="","",E151*F151-G151) ->  | I151: =IF(H151="","",H151/1000) -> 
H152: =IF(E152="","",E152*F152-G152) ->  | I152: =IF(H152="","",H152/1000) -> 
H153: =IF(E153="","",E153*F153-G153) ->  | I153: =IF(H153="","",H153/1000) -> 
D155: Step 2: Sum anaerobic wastewater or sludge treatment methane emissions from Method 2: | I155: =SUM(I149:I153) -> 0 | J155: metric tonnes CH4
C157: Sum of emissions from anaerobic wastewater treatment and sludge digestion systems >>
D159: Sum anaerobic wastewater or sludge treatment methane emissions from Methods 1 and 2: | I159: =(J140+I155) -> 0 | J159: metric tonnes CH4

Sheet Biomass Combustion CO2
C3: Additional Information on Biomass
C4: Estimating CO2 Emissions from Biomass Combustion.
B5: Many wood products manufacturing facilities generate more than half of their energy needs from biomass fuels recovered from the industry’s waste and process streams. The CO2 generated when biomass fuels are burned is not included in GHG emission totals. The GHG Protocol, however, requires that biomass-derived CO2 be reported as additional information. This is the approach generally prescribed for national inventories by the United Nations Framework Convention on Climate Change.
B7: Any increases or decreases in the amount of carbon sequestered by the forests are accounted for in the comprehensive forest accounting system. This is the approach generally prescribed for national inventories by the United Nations Framework Convention on Climate Change. Most international protocols including that of the Intergovernmental Panel on Climate Change (IPCC) have adopted the convention set out by the United Nations.
B9: Estimated Biomass Emissions: The information reported below on biomass emissions is being supplied:  To ensure that readers understand the entity’s overall energy profile in terms of both greenhouse gas emissions, and non-greenhouse gas emissions, and  To provide awareness and understanding of how biomass fuels are generated and used in the manufacture of wood products. Also, note that the information reported below is in conformance with the general greenhouse gas protocol designed by the World Resources Institute and the World Business Council for Sustainable Development. Users of these calculation tools may elect to modify the format and type of information presented based on specific facility or company needs.
B12: EXPLANATION OF CELL COLOUR SCHEME
B13: User entry: Source / fuel description
B14: User entry: Data and parameter values
B15: Auto calculated value:
C19: Biomass Combustion Carbon Dioxide Emissions from Combustion of Wood or Bark
E20: Step 1 | G20: Step 2 | H20: Step 3
E21: A1 | F21: A2 | G21: B | H21: C
E22: Quantity of fuel burned | F22: Units of Fuel Quantity | G22: Biomass combustion CO2 emission factor: [Suggested default value* is 1.51 kg CO2/kg dry wood] | H22: Biomass combustion CO2 emissions in metric tonnes per year
G23: IMPORTANT! For the equations to function correctly, the numerator of the emission factors must be in terms of kg of GHG and the denominator must match the units of fuel quantity!! | H23: C = A1 * B / 1000
C24: Example: Bark Boiler | D24: Bark | E24: 500000 | F24: kg | G24: 1.51 | H24: =E24*G24/1000 -> 755
C25: Source description | D25: Fuel type | E25: Fuel Quant. | F25: Em. Factor | G25: Em. (lb CO2) | H25: Em. (tonne carbon)
H26: =IF(E26="","",E26*G26/1000) -> 
H27: =IF(E27="","",E27*G27/1000) -> 
E42: Biomass Combustion CO2 from Combustion of Wood or Bark | I42: =SUM(H26:H40) -> 0 | J42: Metric Tonnes CO2 /year
C44: Note: | D44: * The emission factors for biomass fuels provided by VCR are not consistent with the factors published in the cited source of the VCR factors. VCR indicates that "these factors may be reviewed by Environment Canada and are for wood with high moisture content." Because of the potential inaccuracies in the VCR factors, the factors provided herein were drawn directly from the cited source of the VCR factors (United States Environmental Protection Agency (USEPA). 2001. AP-42 emission factors for wood residue combustion in boilers – Supplement G, July 2001. Washington, DC: United States Environmental Protection Agency.)

Sheet Indirect - Energy Imports
B1: These spreadsheets include significant amounts of material copied from other WRI and WBCSD calculation tools. Intellectual property rights of the WRI and WBCSD calculation tools belong to WRI and WBCSD, unless stated otherwise.
C2: Optional - Indirect Emissions
C3: Electricity and/or steam imports
B5: EXPLANATION OF CELL COLOUR SCHEME
D6: User entry: Source description
D7: User entry: Fuel use / emission factor values
D8: Auto calculated value:
C11: Indirect Emissions from electricity and steam imports
D13: Step 1 | E13: Step 2 | H13: Step 3 | K13: Step 4
D14: A | E14: B | F14: C | G14: D | H14: E | I14: F | J14: G | K14: H
D15: Electricity and/or steam Import | E15: CO2 emission factor for imported electricity or steam* | F15: CH4 emission factor for imported electricity or steam* | G15: N2O emission factor for imported electricity or steam* | H15: Indirect CO2 emissions in metric tonnes | I15: Indirect CH4 emissions in metric tonnes | J15: Indirect N2O emissions in metric tonnes | K15: Explain source or basis of emission factors for estimating emissions from imported electricity or steam
E16: Suggested emission factors from Environment Canada for purchased electricity are shown below. Note that EC factors are in terms of CO2 equivalents! | F16: Environment Canada factors shown below (in CO2 equiv) include consideration of CH4 | G16: Environment Canada factors shown below (in CO2 equiv) include consideration of N2O | H16: E = A * B / 1000 | I16: F = A * C / 1000 | J16: G = A * D / 1000
D17: MWh | E17: kg CO2/MWh | F17: kg CH4/MWh | G17: kg N2O/MWh | H17: metric tonnes CO2 | I17: metric tonnes CH4 | J17: metric tonnes N2O | K17: Text explanation
C19: Stream description | D19: Electricty/steam Imports (MWh) | E19: Em. factor (lb CO2/MWh) | F19: Em. factor (lb CH4/MWh) | G19: Em. factor (lb N2O/MWh) | H19: Em. (tonne CO2) | I19: Em. (tonne CH4) | J19: Em. (tonne N2O) | K19: em. factor source/basis
H20: =IF(D20="","",D20*E20/1000) ->  | I20: =IF(D20="","",D20*F20/1000) ->  | J20: =IF(D20="","",D20*G20/1000) -> 
H21: =IF(D21="","",D21*E21/1000) ->  | I21: =IF(D21="","",D21*F21/1000) ->  | J21: =IF(D21="","",D21*G21/1000) -> 
H30: CO2 | I30: CH4 | J30: N2O
C31: Step 4: Sum of indirect emissions from purchased electricity or steam (in metric tonnes): | H31: =SUM(H20:H29) -> 0 | I31: =SUM(I20:I29) -> 0 | J31: =SUM(J20:J29) -> 0
C33: * Emission factors for purchased electricity can normally be obtained from national authorities or from the supplier of the purchased electricity. These tools provide, as suggested defaults, purchased electricity emission factors provided by NATIONAL INVENTORY REPORT, 1990-2005: GREENHOUSE GAS SOURCES AND SINKS IN CANADA, Tables A9-1 through A9-12, available at http://www.ec.gc.ca/pdb/ghg/inventory_report/2005_report/a9_eng.cfm#a9_4. Note that these factors are in terms of CO2 equivalents, and include consideration of CO2, CH4, and N2O. Emission factors for imported electricity or steam from CHP systems can be determined by the methods outlined in the "CHP Allocation" worksheet.
C39: Suggested default emission factors for purchased electricity:
C40: Indirect Emissions Resulting from Electric Energy Consumption (kg CO2 eq./MWh). Factors are for the year 2006 (the most current values available), reproduced from NATIONAL INVENTORY REPORT, 1990-2006: GREENHOUSE GAS SOURCES AND SINKS IN CANADA, Tables A9-1 through A9-12, available at http://www.ec.gc.ca/pdb/ghg/inventory_report/2006_report/a9_eng.cfm). Note that these factors are in terms of CO2 equivalents, and include consideration of CO2, CH4, and N2O.
D43: Carbon Dioxide Equivalents
C44: Province | D44: kg CO2 eq./MWh
C45: Alberta | D45: 930
C46: British Columbia | D46: 20
C47: Manitoba | D47: 10
C48: New Brunswick | D48: 366
C49: Newfoundland and Labrador | D49: 15
C50: Yukon/Northwest Territories/Nunavut | D50: 80
C51: Nova Scotia | D51: 549
C52: Ontario | D52: 180
C53: Prince Edward Island | D53: 192
C54: Quebec | D54: 6
C55: Saskatchewan | D55: 810

Sheet Indirect - Energy Exports
B1: These spreadsheets include significant amounts of material copied from other WRI and WBCSD calculation tools. Intellectual property rights of the WRI and WBCSD calculation tools belong to WRI and WBCSD, unless stated otherwise.
C2: Optional - Emissions Associated with Exports of Electricity and Steam
C4: Note: The emissions related to electricity and steam exports
C5: should be reported separately from indirect emissions from imported power or steam
B7: EXPLANATION OF CELL COLOUR SCHEME
D8: User entry: Source description
D9: User entry: Fuel use / emission factor values
D10: Auto calculated value:
C13: Direct emissions attributable to electricity and steam exports
C16: The direct emissions impact is based on amount of emissions associated with producing the exported power or steam
D18: Step 1 | E18: Step 2 | H18: Step 3 | I18: Step 4 | L18: Step 5
D19: A | E19: B | F19: C | G19: D | H19: E | I19: F | J19: G | K19: H | L19: I
D20: Total electricity/steam production by generator | E20: Total direct CO2 emissions from generating the total electricity/steam | F20: Total direct CH4 emissions from generating the total electricity/steam | G20: Total direct N2O emissions from generating the total electricity/steam | H20: Electricity/steam exports from generator | I20: Portion of direct CO2 emissions related to exported power/steam | J20: Portion of direct CH4 emissions related to exported power/steam | K20: Portion of direct N2O emissions related to exported power/steam | L20: Carbon intensity of exported power or steam | N20: Carbon intensity of power on the grid into which the export occurred (applies to electricity only)
I21: F = B * E / A | J21: G = C * E / A | K21: H = D * E / A | L21: I=[F+(G*GWPCH4)+(H*GWPN2O)]/E
D22: MWh | E22: metric tonnes CO2 | F22: metric tonnes CH4 | G22: metric tonnes N2O | H22: MWh | I22: metric tonnes CO2 | J22: metric tonnes CH4 | K22: metric tonnes N2O | L22: metric tonnes CO2 equiv. / MWh | N22: metric tons CO2 equiv / MWh
C24: Stream description | D24: Total energy prod. (MWh) | E24: Total emissions (tonne CO2) | F24: Total emissions (tonne CH4) | G24: Total emissions (tonne N2O) | H24: Energy exports (MWh) | I24: CO2 emissions (tonnes) | J24: CH4 emissions (tonnes) | K24: N2O emissions (tonnes) | L24: Carbon intensity (tonnes CO2 eq/MWh) | N24: Carbon intensity on grid (tonne CO2 eq. / MWh)
I25: =IF($D25=0,"",E25*$H25/$D25) ->  | J25: =IF($D25=0,"",F25*$H25/$D25) ->  | K25: =IF($D25=0,"",G25*$H25/$D25) ->  | L25: =+IF(D25=0,"",(E25+(F25*GWPCH4)+(G25*GWPN2O))/D25) -> 
I26: =IF($D26=0,"",E26*$H26/$D26) ->  | J26: =IF($D26=0,"",F26*$H26/$D26) ->  | K26: =IF($D26=0,"",G26*$H26/$D26) -> 
I34: CO2 | J34: CH4 | K34: N2O
D35: Step 5: Sum of direct emissions attributable to exported power or steam (metric tonnes): | I35: =SUM(I25:I33) -> 0 | J35: =SUM(J25:J33) -> 0 | K35: =SUM(K25:K33) -> 0

Sheet CHP Allocation
B2: These spreadsheets include significant amounts of material copied from other WRI and WBCSD calculation tools. Intellectual property rights of the WRI and WBCSD calculation tools belong to WRI and WBCSD, unless stated otherwise.
D4: Combined heat and power: Allocating emissions based on the efficiency of heat and power production
D6: Note: If a facility is using all of the energy outputs of a CHP system, there is no need to allocate the emissions.
C8: EXPLANATION OF CELL COLOR SCHEME
E9: User entry: Source / fuel description
D10: User entry: Fuel use / emission factor values
D11: User enrty: Physical units:
D12: Auto calculated value:
C15: Combined heat and power: Allocating emissions based on the efficiency of heat and power production
F17: Simplified Efficiency Method: Allocation based on assumed efficiencies for both steam and power production and total CHP emissions
F19: Step 1 | G19: Step 2 | H19: Step 3 | J19: Step 4 | K19: Step 5 | M19: Step 6 | N19: Step 7 | O19: Step 8 | P19: Step 9 | Q19: Step 10 | R19: Step 11 | S19: Step 12
F20: A | G20: B | H20: C | I20: D | J20: E | M20: F | N20: G | O20: H | P20: I | Q20: J | R20: K | S20: L
F21: H Heat output (district heat, process heat, other steam) | G21: P Power output | H21: T Total Fuel input | I21: Energy Unit used in A, B, and C | J21: ET Total direct emissions of a GHG from CHP facility | K21: Allowed input values for ratio of heat production efficiency to power production efficiency, eh/ep | M21: Assigned ratio of efficiencies | N21: ep (efficiency of typical power production) | O21: eh (efficiency of typical heat production) | P21: EH Emissions share allocated to heat production | Q21: EP Emissions share allocated to electricity production | R21: Emission factor for heat production | S21: Emission factor for electricity production
J22: Use methods outlined in "Direct - Fuel Combust." Each GHG must be allocated individually (e.g., use a separate row for CO2, CH4, and N2O) | K22: Minimum ratio allowed by energy balance | L22: Maximum ratio allowed by energy balance | M22: Efficiency of heat production divided by efficiency of power production (recommended default ratio of 0.8/.35=2.29) | N22: G = ( A + B * F ) / ( C * F ) | O22: H = G * F | P22: I = E * ( A / ( A + B * F ) ) | Q22: J = E - I | R22: K = I * 1000 / A | S22: L = J * 1000 / B
D23: Description of Entry | E23: GHG | F23: (MMBtu or MWh) | G23: (same unit as in column A) | H23: (same unit as in column A) | I23: (MMBtu or MWh) | J23: metric tonnes GHG | M23: eh/ep | P23: metric tonnes GHG | Q23: metric tonnes GHG | R23: kg GHG / energy unit in D | S23: kg GHG / energy unit in D
C24: Example>> | D24: Cogen system 1 | E24: CO2 | F24: 1000 | G24: 500 | H24: 2679 | I24: MWh | J24: 587.4 | K24: =IF(ISERROR(F24/(H24-G24)),"",F24/(H24-G24)) -> 0.4589261129 | L24: =IF(ISERROR((H24-F24)/G24),"",(H24-F24)/G24) -> 3.358 | M24: 2.3 | N24: =+IF(ISERROR((F24+M24*G24)/(H24*M24)),"",(F24+M24*G24)/(H24*M24)) -> 0.3489296785 | O24: =IF(ISERROR(M24*N24),"",M24*N24) -> 0.8025382605 | P24: =+IF(ISERROR(J24*(F24/(F24+G24*M24))),"",J24*(F24/(F24+G24*M24))) -> 273.2093023 | Q24: =IF(ISERROR(J24-P24),"",J24-P24) -> 314.1906977 | R24: =IF(ISERROR(P24*1000/F24),"",P24*1000/F24) -> 273.2093023 | S24: =IF(ISERROR(Q24*1000/G24),"",Q24*1000/G24) -> 628.3813953
K25: =IF(ISERROR(F25/(H25-G25)),"",F25/(H25-G25)) ->  | L25: =IF(ISERROR((H25-F25)/G25),"",(H25-F25)/G25) -> 
K26: =IF(ISERROR(F26/(H26-G26)),"",F26/(H26-G26)) ->  | L26: =IF(ISERROR((H26-F26)/G26),"",(H26-F26)/G26) ->  | N26: =+IF(ISERROR((F26+M26*G26)/(H26*M26)),"",(F26+M26*G26)/(H26*M26)) ->  | O26: =IF(ISERROR(M26*N26),"",M26*N26) ->  | P26: =+IF(ISERROR(J26*(F26/(F26+G26*M26))),"",J26*(F26/(F26+G26*M26))) ->  | Q26: =IF(ISERROR(J26-P26),"",J26-P26) ->  | R26: =IF(ISERROR(P26*1000/F26),"",P26*1000/F26) -> 
K27: =IF(ISERROR(F27/(H27-G27)),"",F27/(H27-G27)) ->  | L27: =IF(ISERROR((H27-F27)/G27),"",(H27-F27)/G27) ->  | N27: =+IF(ISERROR((F27+M27*G27)/(H27*M27)),"",(F27+M27*G27)/(H27*M27)) ->  | O27: =IF(ISERROR(M27*N27),"",M27*N27) ->  | P27: =+IF(ISERROR(J27*(F27/(F27+G27*M27))),"",J27*(F27/(F27+G27*M27))) ->  | Q27: =IF(ISERROR(J27-P27),"",J27-P27) -> 
K28: =IF(ISERROR(F28/(H28-G28)),"",F28/(H28-G28)) ->  | L28: =IF(ISERROR((H28-F28)/G28),"",(H28-F28)/G28) ->  | N28: =+IF(ISERROR((F28+M28*G28)/(H28*M28)),"",(F28+M28*G28)/(H28*M28)) ->  | O28: =IF(ISERROR(M28*N28),"",M28*N28) ->  | P28: =+IF(ISERROR(J28*(F28/(F28+G28*M28))),"",J28*(F28/(F28+G28*M28))) ->  | Q28: =IF(ISERROR(J28-P28),"",J28-P28) -> 
B34: The equations used to calculate emission allocations in the table above are mathematically identical to those in the current WRI default efficiency method. However, they have been rearranged to allow the user to select a value for the parameter that controls the allocation (the ratio of efficiencies) in a way that is consistent with the energy balance for the CHP system. The rearrangements have been made so that the assumptions inherent to the efficiency method, and their implications, are more clear. The equations make it clear that (a) the parameter that controls the allocation is the ratio of the efficiencies for heat and power generation, and (b) this ratio and the individual efficiencies are constrained by the energy balance.

Sheet Summary Table
C1: These spreadsheets include significant amounts of material copied from other WRI and WBCSD calculation tools. Intellectual property rights of the WRI and WBCSD calculation tools belong to WRI and WBCSD, unless stated otherwise.
C2: Summary of Inventory Results
D4: =IF(I20<10000,"Did Not Exceed Threshold - Not Required To Report","Threshold Exceeded - Required To Report") -> Did Not Exceed Threshold - Not Required To Report
C5: Name of Inventory | F5: =IF('Operations in Inventory'!F8="","",'Operations in Inventory'!F8) -> 
C7: General description of inventory boundaries | F7: =IF('Operations in Inventory'!F10="","",'Operations in Inventory'!F10) -> 
C9: Required Information: Direct Emissions | F9: CO2 (metric tonnes) | G9: CH4 (metric tonnes) | H9: N2O (metric tonnes) | I9: CO2-equiv (metric tonnes)
C10: Stationary Fuel Combustion Emissions | F10: ='Direct - Fuel Combust.'!J48 -> 0 | G10: ='Direct - Fuel Combust.'!K48 -> 0 | H10: ='Direct - Fuel Combust.'!L48 -> 0 | I10: ='Direct - Fuel Combust.'!M48 -> 0
D12: GHGs associated with the sale or export of electricity, steam, or hot water (this is a subset of stationary fuel combustion emissions) | F12: ='Indirect - Energy Exports'!I35 -> 0 | G12: ='Indirect - Energy Exports'!J35 -> 0 | H12: ='Indirect - Energy Exports'!K35 -> 0 | I12: =F12+G12*GWPCH4+H12*GWPN2O -> 0
C14: Other - Mobile & Transportation Emissions | F14: ='Mobile & Transportation'!K46 -> 0 | G14: ='Mobile & Transportation'!L46 -> 0 | H14: ='Mobile & Transportation'!M46 -> 0 | I14: =F14+G14*GWPCH4+H14*GWPN2O -> 0
C16: Other – Landfill methane emissions | F16: N/A | G16: ='Waste Management'!O47 -> 0 | H16: N/A | I16: =G16*GWPCH4 -> 0
C18: Other – Waste Water treatment emissions | F18: N/A | G18: ='Waste Management'!I159 -> 0 | H18: N/A | I18: =G18*GWPCH4 -> 0
C20: Grand total of Direct Emissions in terms of CO2 Equivalents | F20: N/A | G20: N/A | H20: N/A | I20: =I16+I10+I14+I18 -> 0
C23: Optional Information: Indirect Emissions | F23: CO2 (metric tonnes) | G23: CH4 (metric tonnes) | H23: N2O (metric tonnes) | I23: CO2-equiv (metric tonnes)
C24: Indirect emissions from purchased power/steam/hot water | F24: ='Indirect - Energy Imports'!H31 -> 0 | G24: ='Indirect - Energy Imports'!I31 -> 0 | H24: ='Indirect - Energy Imports'!J31 -> 0 | I24: =F24+G24*GWPCH4+H24*GWPN2O -> 0
C28: Combustion-Related Releases of Biomass-Derived CO2 | F28: CO2 (metric tonnes) | I28: CO2-equiv (metric tonnes)
C29: Combustion-Related Releases of Biomass-Derived CO2 [ metric tons CO2 / year ] | F29: ='Biomass Combustion CO2'!I42 -> 0 | G29: N/A | H29: N/A | I29: N/A

Sheet Custom Emission Factors
A1: The intellectual property rights of this calculation tool belong to WRI and WBCSD, unless stated otherwise in any of the tools.
A2: Please cite the orginial reference when using this tool.
C4: Custom Emission Factors
C5: Calculating custom emission factors
B7: EXPLANATION OF CELL COLOUR SCHEME
D8: User entry: Source description
D9: User entry: Fuel use / emission factor values
D10: Auto calculated value:
D14: A | E14: B | F14: C
D15: Higher Heating Value (HHV) | E15: Carbon Content | F15: Emission Factor
F16: C = 1000 * B * 3.664 / A
D17: GJ HHV / metric tonne | E17: (% w/w) | F17: kg CO2 / GJ HHV
E18: This should be entered as a fraction, i.e. 0 > x > 1
C20: Fuel Type
F21: =IF(D21=0,0,3.664*1000*E21/D21) -> 0
F22: =IF(D22=0,0,3.664*1000*E22/D22) -> 0
F23: =IF(D23=0,0,3.664*1000*E23/D23) -> 0
F24: =IF(D24=0,0,3.664*1000*E24/D24) -> 0
F25: =IF(D25=0,0,3.664*1000*E25/D25) -> 0

Sheet Energy content
A2: Energy content (HHV)
A3: Default factors for fuel specific higher heating values
A4: Copied from VCR (Canadian GHG Challenge Registry Guide to Entity & Facility-Based Reporting, Version 4.0, February 2005, Table 16, p. 34, unless specifically noted otherwise for specific entries)
B8: Fuel type | C8: Higher heating value‡ | D8: Heating Value Units
C9: (HHV)
B11: Natural gas | C11: 0.03809 | D11: GJ/m3
B12: Motor gasoline | C12: 34.66 | D12: GJ/m3
B13: Aviation Gasoline | C13: 33.62 | D13: GJ/m3
B14: Diesel | C14: 38.68 | D14: GJ/m3
B15: Light Fuel Oil | C15: 38.68 | D15: GJ/m3
B16: Heavy Fuel Oil | C16: 41.73 | D16: GJ/m3
B17: Light Crude Oil | C17: 38.51 | D17: GJ/m3
B18: Heavy Crude Oil | C18: 40.9 | D18: GJ/m3
B19: Propane | C19: 25.49 | D19: GJ/m3
B20: Butane (liquid)* | C20: 27.1 | D20: GJ/m3
B21: Ethane (liquid)* | C21: 18.5 | D21: GJ/m3
B22: Wood (not wood pellets) | C22: 18 | D22: GJ/tonne (assumed dry)
B23: Hardwood | C23: 30.6 | D23: GJ/cord (air dry)
B24: Softwood | C24: 18.7 | D24: GJ/cord (air dry)
B25: Mixed wood | C25: 25 | D25: GJ/cord (air dry)
B26: Wood pellets | C26: 19.8 | D26: GJ/tonne (assumed dry)
B27: Wood pellets | C27: 0.0198 | D27: GJ/kg (assumed dry)
B29: *Energy content for this fuel is from American Petroleum Institute (API), Compendium of Greenhouse Gas Emissions Estimation Methodologies for the Oil & Gas Industry, 2004.

Sheet Conversion Factors
A1: The intellectual property rights of this calculation tool belong to WRI and WBCSD, unless stated otherwise in any of the tools.
A2: Please cite the orginial reference when using this tool.
A5: Unit Conversion Tables - copied from VCR ( Canadian GHG Challenge Registry Guide to Entity & Facility-Based Reporting, Version 4.0, February 2005, Table 13, 14, 15, and entries from Table 16, pp. 34-5)
B8: Metric Prefixes
C9: Abbreviation | D9: Prefix | E9: Multiple
C10: k | D10: kilo- | E10: 103
C11: M | D11: mega- | E11: 106
C12: G | D12: giga- | E12: 109
C13: T | D13: tera- | E13: 1012
C14: P | D14: peta- | E14: 1015
B18: Mass
C19: 1 tonne | D19: 1,000 kg
D20: 10-3 kt (kilotonnes)
D21: 10-6 Mt (megatonnes)
D22: 1.1023 tons
D23: 2,204.6 lbs. (pounds)
B27: Volume
C28: 1 m3 (cubic metre) | D28: 1,000 liters
D29: 264.2 US gallons
D30: 6.29 barrels
D31: 35.315 ft3 (cubic feet)
D32: 1.308 yd3 (cubic yards)
B36: Energy
C37: 1 GJ (gigajoule) | D37: 947,817 Btu
D38: 277.8 kWh (kilowatt hour)
C39: 1 kWh electricity | D39: 3.6 MJ (megajoule)
D40: 0.0036 GJ (gigajoule)
A46: Conversion Factors copied from WRI/WBCSD GHG Protocol
C50: Mass
C51: 1 pound (lb) | D51: 453.6 grams (g) | E51: 0.4536 kilograms (kg) | F51: 0.0004536 metric tons (tonne)
C52: 1 kilogram (kg) | D52: 2.205 pounds (lb)
C53: 1 short ton (ton) | D53: 2,000 pounds (lb) | E53: 907.2 kilograms (kg)
C54: 1 metric ton | D54: 2,205 pounds (lb) | E54: 1,000 kilograms (kg) | F54: 1.1023 short tons (tons)
C56: Volume
C57: 1 cubic foot (ft 3) | D57: 7.4805 gallons (gal) | E57: 0.1781 barrel (bbl)
C58: 1 cubic foot (ft 3) | D58: 28.32 liters (L) | E58: 0.02832 cubic meters (m 3)
C59: 1 gallon (gal) | D59: 0.0238 barrel (bbl) | E59: 3.785 liters (L) | F59: 0.003785 cubic meters (m 3)
C60: 1 barrel (bbl) | D60: 42 gallons (gal) | E60: 158.99 liters (L) | F60: 0.1589 cubic meters (m 3)
C61: 1 litre (L) | D61: 0.001 cubic meters (m 3) | E61: 0.2642 gallons (gal)
C62: 1 cubic meter (m 3) | D62: 6.2897 barrels (bbl) | E62: 264.2 gallons (gal) | F62: 1,000 liters (L)
C64: Energy
C65: 1 kilowatt hour (kWh) | D65: 3412 Btu (btu) | E65: 3,600 kilojoules (KJ)
C66: 1 megajoule (MJ) | D66: 0.001 gigajoules (GJ)
C67: 1 gigajoule (GJ) | D67: 0.9478 million Btu (million btu) | E67: 277.8 kilowatt hours (kWh)
C68: 1 Btu (btu) | D68: 1,055 joules (J)
C69: 1 million Btu (million btu) | D69: 1.055 gigajoules (GJ) | E69: 293 kilowatt hours (kWh)
C70: 1 therm (therm) | D70: 100,000 btu | E70: 0.1055 gigajoules (GJ) | F70: 29.3 kilowatt hours (kWh)
C72: Other
C73: kilo | D73: 1,000
C74: mega | D74: 1,000,000
C75: giga | D75: 1,000,000,000
C76: tera | D76: 1,000,000,000,000
C77: 1 psi | D77: 0.06895 bar
C78: 1 kgf / cm 3 (tech atm) | D78: 0.9807 bar
C79: 1 atmosphere (atm) | D79: 1.01325 bar | E79: 101.325 kilo pascals | F79: 14.696 pounds per square inch (psia)
C80: 1 mile (statue) | D80: 1.609 kilometers
C81: 1 metric ton carbon | D81: 3.664 metric tons CO2

Sheet Raw Data Log
A1: Stationary Sources | E1: CO2 | G1: CH4 | I1: N20
A2: Source Description | B2: Fuel Type | C2: Quantity Burned | D2: Units | E2: Emission Factor | F2: Units | G2: Emission Factor | H2: Units | I2: Emission Factor | J2: Units
A28: Other - Mobile & Transportation Sources | E28: CO2 | G28: CH4 | I28: N20
A29: Source Description | B29: Fuel Type | C29: Quantity Burned | D29: Units | E29: Emission Factor | F29: Units | G29: Emission Factor | H29: Units | I29: Emission Factor | J29: Units
L70: Fraction of landfill gas that is collected | M70: Fraction of landfill gas that is burned
A120: Anaerobic Wastewater Treatment Method 1
A121: System Description | B121: Waste Type | C121: Quantity of Gas Collected | D121: Units | E121: Efficiency of gas collection system | F121: Fraction of Gas Burned | G121: Methane content of gas
A127: Anaerobic Wastewater Treatment Method 2
A128: System Description | B128: Waste Type | C128: Amount of Organic Matter sent to plant per year | D128: units | E128: Methane Emission factor | F128: Amount of methane captured and burned | G128: units
A134: Energy Imports
A135: Source Description | B135: Quantity Imported | C135: Units | D135: CO2 Emission Factor | E135: Emission Factor Units | F135: CH4 Emission Factor | G135: Emission Factor Units | H135: N2O Emission Factor | I135: Emission Factor Units
A146: Energy Exports
A147: Source Description | B147: Total Generated | C147: Units | D147: CO2 Emissions | E147: Emission Units | F147: CH4 Emissions | G147: Emission Units | H147: N2O Emissions | I147: Emission Units | J147: Quantity Exported | K147: Units | L147: Grid Intensity
A157: Biomass - Wood Fuel
A158: Source Description | B158: Quantity Burned | C158: units | D158: Emission Factor | E158: units | F158: Amount of climate neutral biomass derived CO2 that is exported | G158: units

Sheet Energy Factors
A1: This table presents a matrix of factors for converting fuel consumption input data into units of GJ HHV | IV1: Disable Error Notification Save Box
A2: (Fuel consumption data in units listed can be converted to units of GJ HHV by multiplying by the factor) | IU2: 1
A4: Consumption Input Units (right) | B4: Btu (HHV) | C4: Btu (LHV) | D4: Million Btu (HHV) | E4: Million Btu (LHV) | F4: GJ (HHV) | G4: US gallon | H4: Litre | I4: bbl | J4: std ft3 | K4: std m3 | L4: lb | M4: US ton | N4: kg | O4: Metric Tonne | P4: GJ (LHV) | Q4: MWh
A5: Fuel type (below)
A6: Car (Gasoline) | B6: 1.055055987e-06 | C6: 1.110973954e-06 | D6: 1.055055987 | E6: 1.110973954 | F6: 1 | G6: 0.1311884936 | H6: 0.03466 | I6: 5.50991673 | J6: 0.9814526405 | K6: 34.66 | L6: N/A | M6: N/A | N6: N/A | O6: N/A | P6: 1.052734863 | Q6: 3.6
A7: Light truck (Gasoline) | B7: 1.055055987e-06 | C7: 1.110973954e-06 | D7: 1.055055987 | E7: 1.110973954 | F7: 1 | G7: 0.1311884936 | H7: 0.03466 | I7: 5.50991673 | J7: 0.9814526405 | K7: 34.66 | L7: N/A | M7: N/A | N7: N/A | O7: N/A | P7: 1.052734863 | Q7: 3.6
A8: Heavy Duty Vehicle (Gasoline) | B8: 1.055055987e-06 | C8: 1.110973954e-06 | D8: 1.055055987 | E8: 1.110973954 | F8: 1 | G8: 0.1311884936 | H8: 0.03466 | I8: 5.50991673 | J8: 0.9814526405 | K8: 34.66 | L8: N/A | M8: N/A | N8: N/A | O8: N/A | P8: 1.052734863 | Q8: 3.6
A9: Motorcycle (Gasoline) | B9: 1.055055987e-06 | C9: 1.110973954e-06 | D9: 1.055055987 | E9: 1.110973954 | F9: 1 | G9: 0.1311884936 | H9: 0.03466 | I9: 5.50991673 | J9: 0.9814526405 | K9: 34.66 | L9: N/A | M9: N/A | N9: N/A | O9: N/A | P9: 1.052734863 | Q9: 3.6
A10: Off-Road Vehicles (Gasoline) | B10: 1.055055987e-06 | C10: 1.110973954e-06 | D10: 1.055055987 | E10: 1.110973954 | F10: 1 | G10: 0.1311884936 | H10: 0.03466 | I10: 5.50991673 | J10: 0.9814526405 | K10: 34.66 | L10: N/A | M10: N/A | N10: N/A | O10: N/A | P10: 1.052734863 | Q10: 3.6
A11: Boats (Gasoline) | B11: 1.055055987e-06 | C11: 1.110973954e-06 | D11: 1.055055987 | E11: 1.110973954 | F11: 1 | G11: 0.1424325582 | H11: 0.03763079476 | I11: 5.982167444 | J11: 1.065575386 | K11: 37.63079476 | L11: N/A | M11: N/A | N11: N/A | O11: N/A | P11: 1.052734863 | Q11: 3.6
A12: Kerosene | B12: 1.055055987e-06 | C12: 1.110973954e-06 | D12: 1.055055987 | E12: 1.110973954 | F12: 1 | G12: 0.1424325582 | H12: 0.03763079476 | I12: 5.982167444 | J12: 1.065575386 | K12: 37.63079476 | L12: N/A | M12: N/A | N12: N/A | O12: N/A | P12: 1.052734863 | Q12: 3.6
A13: Jet Aircraft (Aviation Turbo Fuel) | B13: 1.055055987e-06 | C13: 1.110973954e-06 | D13: 1.055055987 | E13: 1.110973954 | F13: 1 | G13: N/A | H13: N/A | I13: N/A | J13: N/A | K13: N/A | L13: N/A | M13: N/A | N13: N/A | O13: N/A | P13: 1.052734863 | Q13: 3.6
A14: Conventional Aircraft (Aviation Gasoline) | B14: 1.055055987e-06 | C14: 1.110973954e-06 | D14: 1.055055987 | E14: 1.110973954 | F14: 1 | G14: 0.1272520818 | H14: 0.03362 | I14: 5.344587434 | J14: 0.952003398 | K14: 33.62 | L14: N/A | M14: N/A | N14: N/A | O14: N/A | P14: 1.052734863 | Q14: 3.6 | R14: Fuel type | S14: kg CO2/l | T14: kg CH4/l | U14: kg N2O/l
A15: Light ('Distillate') Oil (Oil #2), stationary sources | B15: 1.055055987e-06 | C15: 1.110973954e-06 | D15: 1.055055987 | E15: 1.110973954 | F15: 1 | G15: 0.1464042392 | H15: 0.03868 | I15: 6.148978047 | J15: 1.09528529 | K15: 38.68 | L15: N/A | M15: N/A | N15: N/A | O15: N/A | P15: 1.052734863 | Q15: 3.6 | R15: Car (Gasoline) | S15: 2.36 | T15: 0.00012 | U15: 0.00026
A16: Light ('Distillate') Oil (Oil #2), stationary sources except lime kilns and calciners | B16: 1.055055987e-06 | C16: 1.110973954e-06 | D16: 1.055055987 | E16: 1.110973954 | F16: 1 | G16: 0.1464042392 | H16: 0.03868 | I16: 6.148978047 | J16: 1.09528529 | K16: 38.68 | L16: N/A | M16: N/A | N16: N/A | O16: N/A | P16: 1.052734863 | Q16: 3.6 | R16: Car (E10 Ethanol blend gasoline) | S16: 2.124 | T16: 0.00012 | U16: 0.00026
A17: Light ('Distillate') Oil (Oil #2) lime kilns | B17: 1.055055987e-06 | C17: 1.110973954e-06 | D17: 1.055055987 | E17: 1.110973954 | F17: 1 | G17: 0.1464042392 | H17: 0.03868 | I17: 6.148978047 | J17: 1.09528529 | K17: 38.68 | L17: N/A | M17: N/A | N17: N/A | O17: N/A | P17: 1.052734863 | Q17: 3.6 | R17: Car (Diesel) | S17: 2.73 | T17: 5e-05 | U17: 0.0002
A18: Light ('Distillate') Oil (Oil #2) lime calciners | B18: 1.055055987e-06 | C18: 1.110973954e-06 | D18: 1.055055987 | E18: 1.110973954 | F18: 1 | G18: 0.1464042392 | H18: 0.03868 | I18: 6.148978047 | J18: 1.09528529 | K18: 38.68 | L18: N/A | M18: N/A | N18: N/A | O18: N/A | P18: 1.052734863 | Q18: 3.6 | R18: Light truck (Gasoline) | S18: 2.36 | T18: 0.00022 | U18: 0.00041
A19: Car (Diesel) | B19: 1.055055987e-06 | C19: 1.110973954e-06 | D19: 1.055055987 | E19: 1.110973954 | F19: 1 | G19: 0.1464042392 | H19: 0.03868 | I19: 6.148978047 | J19: 1.09528529 | K19: 38.68 | L19: N/A | M19: N/A | N19: N/A | O19: N/A | P19: 1.052734863 | Q19: 3.6 | R19: Light Truck (E10 Ethanol blend gasoline) | S19: 2.124 | T19: 0.00022 | U19: 0.00041
A20: Light Truck (Diesel) | B20: 1.055055987e-06 | C20: 1.110973954e-06 | D20: 1.055055987 | E20: 1.110973954 | F20: 1 | G20: 0.1464042392 | H20: 0.03868 | I20: 6.148978047 | J20: 1.09528529 | K20: 38.68 | L20: N/A | M20: N/A | N20: N/A | O20: N/A | P20: 1.052734863 | Q20: 3.6 | R20: Light Truck (Diesel) | S20: 2.73 | T20: 7e-05 | U20: 0.0002
A21: Heavy Duty Truck (Diesel) | B21: 1.055055987e-06 | C21: 1.110973954e-06 | D21: 1.055055987 | E21: 1.110973954 | F21: 1 | G21: 0.1464042392 | H21: 0.03868 | I21: 6.148978047 | J21: 1.09528529 | K21: 38.68 | L21: N/A | M21: N/A | N21: N/A | O21: N/A | P21: 1.052734863 | Q21: 3.6 | R21: Heavy Duty Vehicle (Gasoline) | S21: 2.36 | T21: 0.00017 | U21: 0.001
A22: Ships (Diesel) | B22: 1.055055987e-06 | C22: 1.110973954e-06 | D22: 1.055055987 | E22: 1.110973954 | F22: 1 | G22: 0.1464042392 | H22: 0.03868 | I22: 6.148978047 | J22: 1.09528529 | K22: 38.68 | L22: N/A | M22: N/A | N22: N/A | O22: N/A | P22: 1.052734863 | Q22: 3.6 | R22: Heavy Duty (E10 Ethanol blend gasoline) | S22: 2.124 | T22: 0.00017 | U22: 0.001
A23: Diesel | B23: 1.055055987e-06 | C23: 1.110973954e-06 | D23: 1.055055987 | E23: 1.110973954 | F23: 1 | G23: 0.1464042392 | H23: 0.03868 | I23: 6.148978047 | J23: 1.09528529 | K23: 38.68 | L23: N/A | M23: N/A | N23: N/A | O23: N/A | P23: 1.052734863 | Q23: 3.6 | R23: Heavy Duty Truck (Diesel) | S23: 2.73 | T23: 0.00012 | U23: 8e-05
A24: Off-Road Vehicles (Diesel) | B24: 1.055055987e-06 | C24: 1.110973954e-06 | D24: 1.055055987 | E24: 1.110973954 | F24: 1 | G24: 0.1464042392 | H24: 0.03868 | I24: 6.148978047 | J24: 1.09528529 | K24: 38.68 | L24: N/A | M24: N/A | N24: N/A | O24: N/A | P24: 1.052734863 | Q24: 3.6 | R24: Motorcycle (Gasoline) | S24: 2.36 | T24: 0.0014 | U24: 4.6e-05
A25: Railroad Locomotives (Diesel) | B25: 1.055055987e-06 | C25: 1.110973954e-06 | D25: 1.055055987 | E25: 1.110973954 | F25: 1 | G25: 0.1464042392 | H25: 0.03868 | I25: 6.148978047 | J25: 1.09528529 | K25: 38.68 | L25: N/A | M25: N/A | N25: N/A | O25: N/A | P25: 1.052734863 | Q25: 3.6 | R25: Motorcycle (E10 Ethanol blend gasoline) | S25: 2.124 | T25: 0.0014 | U25: 4.6e-05
A26: Ships (Light 'Distillate' Oil) | B26: 1.055055987e-06 | C26: 1.110973954e-06 | D26: 1.055055987 | E26: 1.110973954 | F26: 1 | G26: 0.1464042392 | H26: 0.03868 | I26: 6.148978047 | J26: 1.09528529 | K26: 38.68 | L26: N/A | M26: N/A | N26: N/A | O26: N/A | P26: 1.052734863 | Q26: 3.6 | R26: Propane Vehicles | S26: 1.5 | T26: 0.00052 | U26: 2.8e-05
A27: Heavy ('Residual') Oil (#6 Oil), stationary sources | B27: 1.055055987e-06 | C27: 1.110973954e-06 | D27: 1.055055987 | E27: 1.110973954 | F27: 1 | G27: 0.1579485238 | H27: 0.04173 | I27: 6.633838002 | J27: 1.181650857 | K27: 41.73 | L27: N/A | M27: N/A | N27: N/A | O27: N/A | P27: 1.052734863 | Q27: 3.6 | R27: Natural Gas Vehicles | S27: 2.758 | T27: 0.0321 | U27: 9e-05 | V27: kg/kg
A28: Heavy ('Residual') Oil (#6 Oil), stationary sources except lime kilns and calciners | B28: 1.055055987e-06 | C28: 1.110973954e-06 | D28: 1.055055987 | E28: 1.110973954 | F28: 1 | G28: 0.1579485238 | H28: 0.04173 | I28: 6.633838002 | J28: 1.181650857 | K28: 41.73 | L28: N/A | M28: N/A | N28: N/A | O28: N/A | P28: 1.052734863 | Q28: 3.6 | R28: Off-Road Vehicles (Gasoline) | S28: 2.36 | T28: 0.0027 | U28: 5e-05
A29: Heavy ('Residual') Oil (#6 Oil) lime kilns | B29: 1.055055987e-06 | C29: 1.110973954e-06 | D29: 1.055055987 | E29: 1.110973954 | F29: 1 | G29: 0.1579485238 | H29: 0.04173 | I29: 6.633838002 | J29: 1.181650857 | K29: 41.73 | L29: N/A | M29: N/A | N29: N/A | O29: N/A | P29: 1.052734863 | Q29: 3.6 | R29: Off-Road (E10 Ethanol blend gasoline) | S29: 2.124 | T29: 0.0027 | U29: 5e-05
A30: Heavy ('Residual') Oil (#6 Oil) lime calciners | B30: 1.055055987e-06 | C30: 1.110973954e-06 | D30: 1.055055987 | E30: 1.110973954 | F30: 1 | G30: 0.1579485238 | H30: 0.04173 | I30: 6.633838002 | J30: 1.181650857 | K30: 41.73 | L30: N/A | M30: N/A | N30: N/A | O30: N/A | P30: 1.052734863 | Q30: 3.6 | R30: Off-Road Vehicles (Diesel) | S30: 2.73 | T30: 0.00014 | U30: 0.0011
A31: Ships (Heavy 'Residual' Oil) | B31: 1.055055987e-06 | C31: 1.110973954e-06 | D31: 1.055055987 | E31: 1.110973954 | F31: 1 | G31: 0.1579485238 | H31: 0.04173 | I31: 6.633838002 | J31: 1.181650857 | K31: 41.73 | L31: N/A | M31: N/A | N31: N/A | O31: N/A | P31: 1.052734863 | Q31: 3.6 | R31: Railroad Locomotives (Diesel) | S31: 2.73 | T31: 0.00015 | U31: 0.0011
A32: Propane | B32: 1.055055987e-06 | C32: 1.110973954e-06 | D32: 1.055055987 | E32: 1.110973954 | F32: 1 | G32: 0.09647993944 | H32: 0.02549 | I32: 4.052157456 | J32: 0.7217896078 | K32: 25.49 | L32: N/A | M32: N/A | N32: N/A | O32: N/A | P32: 1.052734863 | Q32: 3.6 | R32: Boats (Gasoline) | S32: 2.36 | T32: 0.0013 | U32: 6e-05
A33: Propane Vehicles | B33: 1.055055987e-06 | C33: 1.110973954e-06 | D33: 1.055055987 | E33: 1.110973954 | F33: 1 | G33: 0.09647993944 | H33: 0.02549 | I33: 4.052157456 | J33: 0.7217896078 | K33: 25.49 | L33: N/A | M33: N/A | N33: N/A | O33: N/A | P33: 1.052734863 | Q33: 3.6 | R33: Ships (Diesel) | S33: 2.73 | T33: 0.00015 | U33: 0.001
A34: Butane | B34: 1.055055987e-06 | C34: 1.110973954e-06 | D34: 1.055055987 | E34: 1.110973954 | F34: 1 | G34: 0.1025738077 | H34: 0.0271 | I34: 4.308099924 | J34: 0.7673793006 | K34: 27.1 | L34: N/A | M34: N/A | N34: N/A | O34: N/A | P34: 1.052734863 | Q34: 3.6 | R34: Ships (Light 'Distillate' Oil) | S34: 2.83 | T34: 0.0003 | U34: 7e-05
A35: Ethane | B35: 1.055055987e-06 | C35: 1.110973954e-06 | D35: 1.055055987 | E35: 1.110973954 | F35: 1 | G35: 0.07002271007 | H35: 0.0185 | I35: 2.940953823 | J35: 0.5238567181 | K35: 18.5 | L35: N/A | M35: N/A | N35: N/A | O35: N/A | P35: 1.052734863 | Q35: 3.6 | R35: Ships (Heavy 'Residual' Oil) | S35: 3.09 | T35: 0.0003 | U35: 8e-05
A36: Car (E10 Ethanol blend gasoline) | B36: 1.055055987e-06 | C36: 1.110973954e-06 | D36: 1.055055987 | E36: 1.110973954 | F36: 1 | G36: N/A | H36: N/A | I36: N/A | J36: N/A | K36: N/A | L36: N/A | M36: N/A | N36: N/A | O36: N/A | P36: 1.052734863 | Q36: 3.6 | R36: Conventional Aircraft (Aviation Gasoline) | S36: 2.33 | T36: 0.00219 | U36: 0.00023
A37: Light Truck (E10 Ethanol blend gasoline) | B37: 1.055055987e-06 | C37: 1.110973954e-06 | D37: 1.055055987 | E37: 1.110973954 | F37: 1 | G37: N/A | H37: N/A | I37: N/A | J37: N/A | K37: N/A | L37: N/A | M37: N/A | N37: N/A | O37: N/A | P37: 1.052734863 | Q37: 3.6 | R37: Jet Aircraft (Aviation Turbo Fuel) | S37: 2.55 | T37: 8e-05 | U37: 0.00025
A38: Heavy Duty (E10 Ethanol blend gasoline) | B38: 1.055055987e-06 | C38: 1.110973954e-06 | D38: 1.055055987 | E38: 1.110973954 | F38: 1 | G38: N/A | H38: N/A | I38: N/A | J38: N/A | K38: N/A | L38: N/A | M38: N/A | N38: N/A | O38: N/A | P38: 1.052734863 | Q38: 3.6
A39: Motorcycle (E10 Ethanol blend gasoline) | B39: 1.055055987e-06 | C39: 1.110973954e-06 | D39: 1.055055987 | E39: 1.110973954 | F39: 1 | G39: N/A | H39: N/A | I39: N/A | J39: N/A | K39: N/A | L39: N/A | M39: N/A | N39: N/A | O39: N/A | P39: 1.052734863 | Q39: 3.6
A40: Off-Road (E10 Ethanol blend gasoline) | B40: 1.055055987e-06 | C40: 1.110973954e-06 | D40: 1.055055987 | E40: 1.110973954 | F40: 1 | G40: N/A | H40: N/A | I40: N/A | J40: N/A | K40: N/A | L40: N/A | M40: N/A | N40: N/A | O40: N/A | P40: 1.052734863 | Q40: 3.6 | R40: All coal input data must be entered in mass units because VCR doesn't provide any data from which to convert to energy units. Therefore, the conversion factors for solid fossil fuels are to convert input units at heading into units of metric tonnes (i.e., the visual basic will write solid fossil fuel quantities in metric tonnes).
A41: Natural Gas, stationary sources (m3) | B41: 1.055055987e-06 | C41: 1.172167201e-06 | D41: 1.055055987 | E41: 1.172167201 | F41: 1 | G41: N/A | H41: 3.809e-05 | I41: N/A | J41: 0.001078578508 | K41: 0.03809 | L41: N/A | M41: N/A | N41: N/A | O41: N/A | P41: 1.110973954 | Q41: 3.6
A42: Natural Gas, stationary sources except lime kilns and calciners (m3) | B42: 1.055055987e-06 | C42: 1.172167201e-06 | D42: 1.055055987 | E42: 1.172167201 | F42: 1 | G42: N/A | H42: 1.00003809 | I42: N/A | J42: 0.001078578508 | K42: 0.03809 | L42: N/A | M42: N/A | N42: N/A | O42: N/A | P42: 1.110973954 | Q42: 3.6
A43: Natural Gas, lime kilns (m3) | B43: 1.055055987e-06 | C43: 1.172167201e-06 | D43: 1.055055987 | E43: 1.172167201 | F43: 1 | G43: N/A | H43: 2.00003809 | I43: N/A | J43: 0.001078578508 | K43: 0.03809 | L43: N/A | M43: N/A | N43: N/A | O43: N/A | P43: 1.110973954 | Q43: 3.6
A44: Natural Gas, lime calciners (m3) | B44: 1.055055987e-06 | C44: 1.172167201e-06 | D44: 1.055055987 | E44: 1.172167201 | F44: 1 | G44: N/A | H44: 3.00003809 | I44: N/A | J44: 0.001078578508 | K44: 0.03809 | L44: N/A | M44: N/A | N44: N/A | O44: N/A | P44: 1.110973954 | Q44: 3.6
A45: Still Gas | B45: 1.055055987e-06 | C45: 1.172167201e-06 | D45: 1.055055987 | E45: 1.172167201 | F45: 1 | G45: N/A | H45: 3.809e-05 | I45: N/A | J45: 0.001078578508 | K45: 0.03809 | L45: N/A | M45: N/A | N45: N/A | O45: N/A | P45: 1.110973954 | Q45: 3.6
A46: Natural Gas Vehicles | B46: 1.055055987e-06 | C46: 1.172167201e-06 | D46: 1.055055987 | E46: 1.172167201 | F46: 1 | G46: N/A | H46: 3.809e-05 | I46: N/A | J46: 0.001078578508 | K46: 0.03809 | L46: N/A | M46: N/A | N46: N/A | O46: N/A | P46: 1.110973954 | Q46: 3.6
A47: Newfoundland - Canadian Bituminous | B47: N/A | C47: N/A | D47: N/A | E47: N/A | F47: N/A | G47: N/A | H47: N/A | I47: N/A | J47: N/A | K47: N/A | L47: 0.0004536 | M47: 0.9072 | N47: 0.001 | O47: 1 | P47: N/A | Q47: N/A
A48: Newfoundland - Antracite | B48: N/A | C48: N/A | D48: N/A | E48: N/A | F48: N/A | G48: N/A | H48: N/A | I48: N/A | J48: N/A | K48: N/A | L48: 0.0004536 | M48: 0.9072 | N48: 0.001 | O48: 1 | P48: N/A | Q48: N/A
A49: Labrador - Canadian Bituminous | B49: N/A | C49: N/A | D49: N/A | E49: N/A | F49: N/A | G49: N/A | H49: N/A | I49: N/A | J49: N/A | K49: N/A | L49: 0.0004536 | M49: 0.9072 | N49: 0.001 | O49: 1 | P49: N/A | Q49: N/A
A50: Labrador - Antracite | B50: N/A | C50: N/A | D50: N/A | E50: N/A | F50: N/A | G50: N/A | H50: N/A | I50: N/A | J50: N/A | K50: N/A | L50: 0.0004536 | M50: 0.9072 | N50: 0.001 | O50: 1 | P50: N/A | Q50: N/A
A51: Nova Scotia - Canadian Bituminous | B51: N/A | C51: N/A | D51: N/A | E51: N/A | F51: N/A | G51: N/A | H51: N/A | I51: N/A | J51: N/A | K51: N/A | L51: 0.0004536 | M51: 0.9072 | N51: 0.001 | O51: 1 | P51: N/A | Q51: N/A
A52: Nova Scotia - U.S. Bituminous | B52: N/A | C52: N/A | D52: N/A | E52: N/A | F52: N/A | G52: N/A | H52: N/A | I52: N/A | J52: N/A | K52: N/A | L52: 0.0004536 | M52: 0.9072 | N52: 0.001 | O52: 1 | P52: N/A | Q52: N/A
A53: Nova Scotia - Sub-Bituminous | B53: N/A | C53: N/A | D53: N/A | E53: N/A | F53: N/A | G53: N/A | H53: N/A | I53: N/A | J53: N/A | K53: N/A | L53: 0.0004536 | M53: 0.9072 | N53: 0.001 | O53: 1 | P53: N/A | Q53: N/A
A54: New Brunswick - Canadian Bituminous | B54: N/A | C54: N/A | D54: N/A | E54: N/A | F54: N/A | G54: N/A | H54: N/A | I54: N/A | J54: N/A | K54: N/A | L54: 0.0004536 | M54: 0.9072 | N54: 0.001 | O54: 1 | P54: N/A | Q54: N/A
A55: New Brunswick - U.S. Bituminous | B55: N/A | C55: N/A | D55: N/A | E55: N/A | F55: N/A | G55: N/A | H55: N/A | I55: N/A | J55: N/A | K55: N/A | L55: 0.0004536 | M55: 0.9072 | N55: 0.001 | O55: 1 | P55: N/A | Q55: N/A
A56: Quebec - Canadian Bituminous | B56: N/A | C56: N/A | D56: N/A | E56: N/A | F56: N/A | G56: N/A | H56: N/A | I56: N/A | J56: N/A | K56: N/A | L56: 0.0004536 | M56: 0.9072 | N56: 0.001 | O56: 1 | P56: N/A | Q56: N/A
A57: Quebec - U.S. Bituminous | B57: N/A | C57: N/A | D57: N/A | E57: N/A | F57: N/A | G57: N/A | H57: N/A | I57: N/A | J57: N/A | K57: N/A | L57: 0.0004536 | M57: 0.9072 | N57: 0.001 | O57: 1 | P57: N/A | Q57: N/A
A58: Quebec - Anthracite | B58: N/A | C58: N/A | D58: N/A | E58: N/A | F58: N/A | G58: N/A | H58: N/A | I58: N/A | J58: N/A | K58: N/A | L58: 0.0004536 | M58: 0.9072 | N58: 0.001 | O58: 1 | P58: N/A | Q58: N/A
A59: Ontario - Canadian Bituminous | B59: N/A | C59: N/A | D59: N/A | E59: N/A | F59: N/A | G59: N/A | H59: N/A | I59: N/A | J59: N/A | K59: N/A | L59: 0.0004536 | M59: 0.9072 | N59: 0.001 | O59: 1 | P59: N/A | Q59: N/A
A60: Ontario - U.S. Bituminous | B60: N/A | C60: N/A | D60: N/A | E60: N/A | F60: N/A | G60: N/A | H60: N/A | I60: N/A | J60: N/A | K60: N/A | L60: 0.0004536 | M60: 0.9072 | N60: 0.001 | O60: 1 | P60: N/A | Q60: N/A
A61: Ontario - Sub-bituminous | B61: N/A | C61: N/A | D61: N/A | E61: N/A | F61: N/A | G61: N/A | H61: N/A | I61: N/A | J61: N/A | K61: N/A | L61: 0.0004536 | M61: 0.9072 | N61: 0.001 | O61: 1 | P61: N/A | Q61: N/A
A62: Ontario - Lignite | B62: N/A | C62: N/A | D62: N/A | E62: N/A | F62: N/A | G62: N/A | H62: N/A | I62: N/A | J62: N/A | K62: N/A | L62: 0.0004536 | M62: 0.9072 | N62: 0.001 | O62: 1 | P62: N/A | Q62: N/A
A63: Ontario - Anthracite | B63: N/A | C63: N/A | D63: N/A | E63: N/A | F63: N/A | G63: N/A | H63: N/A | I63: N/A | J63: N/A | K63: N/A | L63: 0.0004536 | M63: 0.9072 | N63: 0.001 | O63: 1 | P63: N/A | Q63: N/A
A64: Manitoba - Canadian Bituminous | B64: N/A | C64: N/A | D64: N/A | E64: N/A | F64: N/A | G64: N/A | H64: N/A | I64: N/A | J64: N/A | K64: N/A | L64: 0.0004536 | M64: 0.9072 | N64: 0.001 | O64: 1 | P64: N/A | Q64: N/A
A65: Manitoba - U.S. Bituminous | B65: N/A | C65: N/A | D65: N/A | E65: N/A | F65: N/A | G65: N/A | H65: N/A | I65: N/A | J65: N/A | K65: N/A | L65: 0.0004536 | M65: 0.9072 | N65: 0.001 | O65: 1 | P65: N/A | Q65: N/A
A66: Manitoba - Sub-bituminous | B66: N/A | C66: N/A | D66: N/A | E66: N/A | F66: N/A | G66: N/A | H66: N/A | I66: N/A | J66: N/A | K66: N/A | L66: 0.0004536 | M66: 0.9072 | N66: 0.001 | O66: 1 | P66: N/A | Q66: N/A
A67: Manitoba - Lignite | B67: N/A | C67: N/A | D67: N/A | E67: N/A | F67: N/A | G67: N/A | H67: N/A | I67: N/A | J67: N/A | K67: N/A | L67: 0.0004536 | M67: 0.9072 | N67: 0.001 | O67: 1 | P67: N/A | Q67: N/A
A68: Manitoba - Anthracite | B68: N/A | C68: N/A | D68: N/A | E68: N/A | F68: N/A | G68: N/A | H68: N/A | I68: N/A | J68: N/A | K68: N/A | L68: 0.0004536 | M68: 0.9072 | N68: 0.001 | O68: 1 | P68: N/A | Q68: N/A
A69: Saskatchewan - Canadian Bituminous | B69: N/A | C69: N/A | D69: N/A | E69: N/A | F69: N/A | G69: N/A | H69: N/A | I69: N/A | J69: N/A | K69: N/A | L69: 0.0004536 | M69: 0.9072 | N69: 0.001 | O69: 1 | P69: N/A | Q69: N/A
A70: Saskatchewan - Lignite | B70: N/A | C70: N/A | D70: N/A | E70: N/A | F70: N/A | G70: N/A | H70: N/A | I70: N/A | J70: N/A | K70: N/A | L70: 0.0004536 | M70: 0.9072 | N70: 0.001 | O70: 1 | P70: N/A | Q70: N/A
A71: Alberta - Canadian Bituminous | B71: N/A | C71: N/A | D71: N/A | E71: N/A | F71: N/A | G71: N/A | H71: N/A | I71: N/A | J71: N/A | K71: N/A | L71: 0.0004536 | M71: 0.9072 | N71: 0.001 | O71: 1 | P71: N/A | Q71: N/A
A72: Alberta - Sub-bituminous | B72: N/A | C72: N/A | D72: N/A | E72: N/A | F72: N/A | G72: N/A | H72: N/A | I72: N/A | J72: N/A | K72: N/A | L72: 0.0004536 | M72: 0.9072 | N72: 0.001 | O72: 1 | P72: N/A | Q72: N/A
A73: Alberta - Anthracite | B73: N/A | C73: N/A | D73: N/A | E73: N/A | F73: N/A | G73: N/A | H73: N/A | I73: N/A | J73: N/A | K73: N/A | L73: 0.0004536 | M73: 0.9072 | N73: 0.001 | O73: 1 | P73: N/A | Q73: N/A
A74: British Columbia - Canadian Bituminous | B74: N/A | C74: N/A | D74: N/A | E74: N/A | F74: N/A | G74: N/A | H74: N/A | I74: N/A | J74: N/A | K74: N/A | L74: 0.0004536 | M74: 0.9072 | N74: 0.001 | O74: 1 | P74: N/A | Q74: N/A
A75: British Columbia - U.S. Bituminous | B75: N/A | C75: N/A | D75: N/A | E75: N/A | F75: N/A | G75: N/A | H75: N/A | I75: N/A | J75: N/A | K75: N/A | L75: 0.0004536 | M75: 0.9072 | N75: 0.001 | O75: 1 | P75: N/A | Q75: N/A
A76: British Columbia - Sub-Bituminous | B76: N/A | C76: N/A | D76: N/A | E76: N/A | F76: N/A | G76: N/A | H76: N/A | I76: N/A | J76: N/A | K76: N/A | L76: 0.0004536 | M76: 0.9072 | N76: 0.001 | O76: 1 | P76: N/A | Q76: N/A
A77: All Provinces - Coke | B77: N/A | C77: N/A | D77: N/A | E77: N/A | F77: N/A | G77: N/A | H77: N/A | I77: N/A | J77: N/A | K77: N/A | L77: 0.0004536 | M77: 0.9072 | N77: 0.001 | O77: 1 | P77: N/A | Q77: N/A
A78: Wood Fuel/Wood Waste | B78: 1.055055987e-06 | C78: 1.110973954e-06 | D78: 1.055055987 | E78: 1.110973954 | F78: 1 | G78: N/A | H78: N/A | I78: N/A | J78: N/A | K78: N/A | L78: 0.0081648 | M78: 16.3296 | N78: 0.018 | O78: 18 | P78: 1.052734863 | Q78: 3.6
A81: Fuel type | B81: CO2 Emission Factor | C81: CH4 Emission Factor | D81: N2O Emission Factor | E81: Comments
A82: Liquid Fossil
A83: Light ('Distillate') Oil (Oil #2), stationary sources | B83: 2.725 | C83: 6e-06 | D83: 3.1e-05 | E83: Data collected by NCASI indicates that lime kilns and calciners may exhibit higher CH4 emissions than light oil-fired boilers. IPCC discussion of N2O formation conditions indicates that lime kilns may exhibit zero N2O emissions.
A84: Heavy ('Residual') Oil (#6 Oil), stationary sources | B84: 3.124 | C84: 0.00012 | D84: 6.4e-05 | E84: Data collected by NCASI indicates that lime kilns and calciners may exhibit lower CH4 emissions than heavy oil-fired boilers. IPCC discussion of N2O formation conditions indicates that lime kilns may exhibit zero N2O emissions.
A85: Kerosene | B85: 2.534 | C85: 6e-06 | D85: 3.1e-05
A86: Diesel | B86: 2.663 | C86: 0.00013 | D86: 0.0004
A87: Propane | B87: 1.51 | C87: 2.4e-05 | D87: 0.000108
A88: Butane | B88: 1.73 | C88: 2.4e-05 | D88: 0.000108
A89: Ethane | B89: 0.976 | E89: Environment Canada does not provide CH4 nor N2O emission factors for Ethane.
A90: Gaseous fossil
A91: Natural Gas, stationary sources (m3) | B91: 1.891 | C91: 3.7e-05 | D91: 3.3e-05 | E91: Data collected by NCASI indicates that lime kilns and calciners may exhibit higher CH4 emissions than natural gas-fired boilers. IPCC discussion of N2O formation conditions indicates that lime kilns may exhibit zero N2O emissions.
A92: Still Gas | B92: 1.75 | D92: 2e-06 | E92: Environment Canada does not provide a CH4 emission factor for still gas.
A93: Solid Fossil
A94: Newfoundland - Canadian Bituminous | B94: 2.25 | C94: 3e-05 | D94: 2e-05
A95: Newfoundland - Antracite | B95: 2.39 | C95: 3e-05 | D95: 2e-05
A96: Labrador - Canadian Bituminous | B96: 2.25 | C96: 3e-05 | D96: 2e-05
A97: Labrador - Antracite | B97: 2.39 | C97: 3e-05 | D97: 2e-05
A98: Nova Scotia - Canadian Bituminous | B98: 2.25 | C98: 3e-05 | D98: 2e-05
A99: Nova Scotia - U.S. Bituminous | B99: 2.29 | C99: 3e-05 | D99: 2e-05
A100: Nova Scotia - Sub-Bituminous | B100: 1.73 | C100: 3e-05 | D100: 2e-05
A101: New Brunswick - Canadian Bituminous | B101: 2 | C101: 3e-05 | D101: 2e-05
A102: New Brunswick - U.S. Bituminous | B102: 2.31 | C102: 3e-05 | D102: 2e-05
A103: Quebec - Canadian Bituminous | B103: 2.25 | C103: 3e-05 | D103: 2e-05
A104: Quebec - U.S. Bituminous | B104: 2.34 | C104: 3e-05 | D104: 2e-05
A105: Quebec - Anthracite | B105: 2.39 | C105: 3e-05 | D105: 2e-05
A106: Ontario - Canadian Bituminous | B106: 2.25 | C106: 3e-05 | D106: 2e-05
A107: Ontario - U.S. Bituminous | B107: 2.43 | C107: 3e-05 | D107: 2e-05
A108: Ontario - Sub-bituminous | B108: 1.73 | C108: 3e-05 | D108: 2e-05
A109: Ontario - Lignite | B109: 1.48 | C109: 3e-05 | D109: 2e-05
A110: Ontario - Anthracite | B110: 2.39 | C110: 3e-05 | D110: 2e-05
A111: Manitoba - Canadian Bituminous | B111: 2.25 | C111: 3e-05 | D111: 2e-05
A112: Manitoba - U.S. Bituminous | B112: 2.43 | C112: 3e-05 | D112: 2e-05
A113: Manitoba - Sub-bituminous | B113: 1.73 | C113: 3e-05 | D113: 2e-05
A114: Manitoba - Lignite | B114: 1.42 | C114: 3e-05 | D114: 2e-05
A115: Manitoba - Anthracite | B115: 2.39 | C115: 3e-05 | D115: 2e-05
A116: Saskatchewan - Canadian Bituminous | B116: 1.85 | C116: 3e-05 | D116: 2e-05
A117: Saskatchewan - Lignite | B117: 1.43 | C117: 3e-05 | D117: 2e-05
A118: Alberta - Canadian Bituminous | B118: 1.85 | C118: 3e-05 | D118: 2e-05
A119: Alberta - Sub-bituminous | B119: 1.77 | C119: 3e-05 | D119: 2e-05
A120: Alberta - Anthracite | B120: 2.39 | C120: 3e-05 | D120: 2e-05
A121: British Columbia - Canadian Bituminous | B121: 2.07 | C121: 3e-05 | D121: 2e-05
A122: British Columbia - U.S. Bituminous | B122: 2.43 | C122: 3e-05 | D122: 2e-05
A123: British Columbia - Sub-Bituminous | B123: 1.77 | C123: 3e-05 | D123: 2e-05
A124: All Provinces - Coke | B124: 2.48 | C124: 3e-05 | D124: 2e-05
A125: Biofuels*
A126: Wood Fuel/Wood Waste | B126: 0 | C126: 0.00016 | D126: 0.0001 | E126: Biomass combustion CO2 can be calculated in the "Biomass Combustion CO2" worksheet. CH4 and N2O emission factors are from USEPA AP-42, converted to units consistent with the other EC emission factors.
A128: Biomass combustion co2: | B128: kg CO2/GJ HHV
A129: Wood Fuel/Wood Waste | B129: 83.9
B131: Carbon Dioxide Equivalents
A132: Province | B132: kg CO2 equiv/MWh
A133: Alberta | B133: 930
A134: British Columbia | B134: 20
A135: Manitoba | B135: 10
A136: New Brunswick | B136: 366
A137: Newfoundland and Labrador | B137: 15
A138: Yukon/Northwest Territories/Nunavut | B138: 80
A139: Nova Scotia | B139: 549
A140: Ontario | B140: 180
A141: Prince Edward Island | B141: 192
A142: Quebec | B142: 6
A143: Saskatchewan | B143: 810

Sheet Revisions
A1: Version | B1: Changes | C1: Implementor | D1: Date
A2: 3.3b | B2: Updated 100 year global warming potentials to IPCC AR4 and modified spreadsheet to enable easily changed GWPs. | C2: BJM | D2: 2022-02-10
B3: Created Revision tab | C3: BJM | D3: 2022-03-01
B4: Updated Method 3 on Waste Management tab to better reflect IPCC methodology | C4: BJM | D4: 2022-03-01
